{"text_format":"1","workbook":"xlsx","n_sheets":10,"sheets":["Stavba","310 3357310 KL","310 3357310 Rek","310 3357310 Pol","320 3357320 KL","320 3357320 Rek","320 3357320 Pol","330 3357330 KL","330 3357330 Rek","330 3357330 Pol"],"not_rendered":{"charts":0,"images":0,"macros":0,"external_links":0,"defined_names":52,"comments":0,"pivot_tables":0},"unopened":[],"bounds":{"document_bytes":16777216,"sheet_cells":100000,"rows_first":2000,"rows_last":500,"rows_between":2000,"halvings":0,"cell_chars":16384,"cell_head_chars":4096},"cells_cut":0,"cells_raw":0,"read":"whole","date_system":"1900"}

{"sheet":"Stavba","index":0,"n_rows":40,"n_cols":10,"rows_kept":40,"cut":false,"hidden":false,"merged":[[18,8,18,9],[19,8,19,9],[20,8,20,9],[21,8,21,9],[22,8,22,9]]}
[]
[null,null,"Položkový rozpočet stavby",null,null,null,null,"Datum: ",{"$f":"TODAY()","v":"2023-05-22"}]
[null,null,null," "]
[]
[null,null,"Stavba :","3357","Přípojky pro p.p.č. 1005/8 v k.ú. Turnov"]
[]
[null,null,"Objednatel : ","Město TURNOV",null,null,null,"IČO :","00276227"]
[null,null,null,"Antonína Dvořáka 335",null,null,null,"DIČ :","CZ00276227"]
[null,null,"51122","Turnov"]
[]
[null,null,"Zhotovitel : ",".",null,null,null,"IČO :"]
[null,null,null,null,null,null,null,"DIČ :"]
[]
[null,null,"Za zhotovitele :",null,null,null,null,"Za objednatele :"]
[]
[null,null,"_______________",null,null,null,null,"_______________"]
[]
[null,null,null,null,null,null,null,null,null,"Rozpočtové náklady"]
[null,"Základ pro DPH",null,15,"%",null,null,null,{"$f":"ROUND(G32,0)","v":0}]
[null,"DPH ",null,{"$f":"SazbaDPH1","v":15},"%",null,null,null,{"$f":"ROUND(I19*D20/100,0)","v":0}]
[null,"Základ pro DPH",null,21,"%",null,null,null,{"$f":"ROUND(H32,0)","v":0}]
[null,"DPH ",null,{"$f":"SazbaDPH2","v":21},"%",null,null,null,{"$f":"ROUND(I21*D21/100,0)","v":0}]
[null,"Cena celkem za stavbu",null,null,null,null,null,null,{"$f":"SUM(I19:I22)","v":0}]
[]
[]
[null,"Rekapitulace stavebních objektů a provozních souborů"]
[]
[null,"Číslo a název objektu / provozního souboru",null,null,null,"Cena celkem",{"$f":"CONCATENATE(\"Základ DPH \",SazbaDPH1,\" %\")","v":"Základ DPH 15 %"},{"$f":"CONCATENATE(\"Základ DPH \",SazbaDPH2,\" %\")","v":"Základ DPH 21 %"},"DPH celkem","%"]
[null,"310","Vodovodní přípojka",null,null,{"$f":"G29+H29+I29","v":0},0,{"$f":"SUM(H37)","v":0},{"$f":"(G29*SazbaDPH1)/100+(H29*SazbaDPH2)/100","v":0},{"$f":"IF(CelkemObjekty=0,\"\",F29/CelkemObjekty*100)","v":""}]
[null,"320","Kanalizační přípojka",null,null,{"$f":"G30+H30+I30","v":0},0,{"$f":"SUM(H38)","v":0},0,""]
[null,"330","STL plynová přípojka",null,null,0,0,{"$f":"SUM(H39)","v":0},0,""]
[null,"Celkem za stavbu",null,null,null,{"$f":"SUM(F29:F31)","v":0},{"$f":"SUM(G29:G31)","v":0},{"$f":"SUM(H29:H31)","v":0},{"$f":"SUM(I29:I31)","v":0},{"$f":"IF(CelkemObjekty=0,\"\",F32/CelkemObjekty*100)","v":""}]
[]
[null,"Rekapitulace stavebních rozpočtů"]
[]
[null,"Číslo objektu","Číslo a název rozpočtu",null,null,"Cena celkem",{"$f":"CONCATENATE(\"Základ DPH \",SazbaDPH1,\" %\")","v":"Základ DPH 15 %"},{"$f":"CONCATENATE(\"Základ DPH \",SazbaDPH2,\" %\")","v":"Základ DPH 21 %"},"DPH celkem","%"]
[null,"310","3357/310 Vodovodní přípojka",null,null,{"$f":"G37+H37+I37","v":0},0,{"$f":"SUM('310 3357310 KL'!C23)","v":0},{"$f":"(G37*SazbaDPH1)/100+(H37*SazbaDPH2)/100","v":0},{"$f":"IF(CelkemObjekty=0,\"\",F37/CelkemObjekty*100)","v":""}]
[null,"320","3357/320 Kanalizační přípojka",null,null,{"$f":"G38+H38+I38","v":0},0,{"$f":"SUM('320 3357320 KL'!C23)","v":0},0,""]
[null,"330","3357/330 STL plynová přípojka",null,null,0,0,{"$f":"SUM('330 3357330 KL'!C23)","v":0},0,""]
[null,"Celkem za stavbu",null,null,null,{"$f":"SUM(F37:F39)","v":0},{"$f":"SUM(G37:G39)","v":0},{"$f":"SUM(H37:H39)","v":0},{"$f":"SUM(I37:I39)","v":0},{"$f":"IF(CelkemObjekty=0,\"\",F40/CelkemObjekty*100)","v":""}]

{"sheet":"310 3357310 KL","index":1,"n_rows":45,"n_cols":8,"rows_kept":45,"cut":false,"hidden":false,"merged":[[22,0,22,1],[7,2,7,4],[8,2,8,4],[9,2,9,4],[10,2,10,4],[11,2,11,4],[50,1,50,6],[29,5,29,6],[30,5,30,6],[31,5,31,6],[32,5,32,6],[33,5,33,6],[36,1,44,6],[45,1,45,6],[46,1,46,6],[47,1,47,6],[48,1,48,6],[49,1,49,6]]}
["POLOŽKOVÝ ROZPOČET"]
["Rozpočet",null,"3357/310","Vodovodní přípojka",null,"JKSO ","827.19.A1"]
[]
["Objekt",null,null,null,null,"SKP "]
["310",null,"Vodovodní přípojka",null,null,"Měrná jednotka","m"]
["Stavba",null,null,null,null,"Počet jednotek",5]
["3357",null,"Přípojky pro p.p.č. 1005/8 v k.ú. Turnov",null,null,"Náklady na m.j.",{"$f":"IF(G6=0,,ROUND((F30+F32)/G6,1))","v":0}]
["Projektant",null,"JENA-CZ s.r.o.",null,null,"Typ rozpočtu"]
["Zpracovatel projektu"]
["Objednatel",null,"Město TURNOV"]
["Dodavatel",null,".",null,null,"Zakázkové číslo "]
["Rozpočtoval",null,null,null,null,"Počet listů"]
["ROZPOČTOVÉ NÁKLADY"]
["Základní rozpočtové náklady",null,null,"Ostatní rozpočtové náklady"]
[null,"HSV celkem",{"$f":"'310 3357310 Rek'!E12","v":0},{"$f":"'310 3357310 Rek'!A17","v":"Zařízení staveniště"},null,null,{"$f":"'310 3357310 Rek'!I17","v":0}]
["Z","PSV celkem",{"$f":"'310 3357310 Rek'!F12","v":0},{"$f":"'310 3357310 Rek'!A18","v":"Kompletační činnost (IČD)"},null,null,{"$f":"'310 3357310 Rek'!I18","v":0}]
["R","M práce celkem",{"$f":"'310 3357310 Rek'!H12","v":0},{"$f":"'310 3357310 Rek'!A19","v":"Vytýčení stavby a podz. inženýrských sítí"},null,null,{"$f":"'310 3357310 Rek'!I19","v":0}]
["N","M dodávky celkem",{"$f":"'310 3357310 Rek'!G12","v":0},{"$f":"'310 3357310 Rek'!A20","v":"Dokumentace skutečného provedení"},null,null,{"$f":"'310 3357310 Rek'!I20","v":0}]
["ZRN celkem",null,{"$f":"SUM(C15:C18)","v":0},{"$f":"'310 3357310 Rek'!A21","v":"Geodetické zaměření stavby"},null,null,{"$f":"'310 3357310 Rek'!I21","v":0}]
[null,null,null,{"$f":"'310 3357310 Rek'!A22","v":"DIO"},null,null,{"$f":"'310 3357310 Rek'!I22","v":0}]
["HZS",null,{"$f":"'310 3357310 Rek'!I12","v":0}]
["ZRN+HZS",null,{"$f":"C19+C21","v":0}]
["ZRN+ost.náklady+HZS",null,{"$f":"C22+G23","v":0},"Ostatní náklady celkem",null,null,{"$f":"'310 3357310 Rek'!H23","v":0}]
["Vypracoval",null,null,"Za zhotovitele",null,"Za objednatele"]
["Jméno :",null,null,"Jméno :",null,"Jméno :"]
["Datum :",null,null,"Datum :",null,"Datum :"]
[]
["Podpis :",null,null,"Podpis:",null,"Podpis:"]
[]
["Základ pro DPH",null,21,"%  ",null,{"$f":"C23-F32","v":0}]
["DPH",null,{"$f":"C30","v":21},"% ",null,{"$f":"ROUND(PRODUCT(F30,C31/100),0)","v":0}]
["Základ pro DPH",null,0,"% ",null,0]
["DPH",null,{"$f":"C32","v":0},"% ",null,{"$f":"ROUND(PRODUCT(F32,C33/100),0)","v":0}]
["CENA ZA OBJEKT CELKEM",null,null,null,null,{"$f":"ROUND(SUM(F30:F33),0)","v":0}]
[]
["Poznámka :",null,null,null,null,null,null," "]
[null,null,null,null,null,null,null," "]
[null,null,null,null,null,null,null," "]
[null,null,null,null,null,null,null," "]
[null,null,null,null,null,null,null," "]
[null,null,null,null,null,null,null," "]
[null,null,null,null,null,null,null," "]
[null,null,null,null,null,null,null," "]
[null,null,null,null,null,null,null," "]
[null,null,null,null,null,null,null," "]

{"sheet":"310 3357310 Rek","index":2,"n_rows":23,"n_cols":53,"rows_kept":23,"cut":false,"hidden":false,"merged":[[0,0,0,1],[1,0,1,1],[1,6,1,8],[22,7,22,8]]}
["Stavba :",null,"3357 Přípojky pro p.p.č. 1005/8 v k.ú. Turnov",null,null,null,"Rozpočet :","3357/310"]
["Objekt :",null,"310 Vodovodní přípojka",null,null,null,"Vodovodní přípojka"]
[]
["REKAPITULACE  STAVEBNÍCH  DÍLŮ"]
[]
[null,"Stavební díl",null,null,"HSV","PSV","Dodávka","Montáž","HZS"]
[{"$f":"'310 3357310 Pol'!B7","v":"1"},{"$f":"'310 3357310 Pol'!C7","v":"Zemní práce"},null,null,{"$f":"'310 3357310 Pol'!BA93","v":0},{"$f":"'310 3357310 Pol'!BB93","v":0},{"$f":"'310 3357310 Pol'!BC93","v":0},{"$f":"'310 3357310 Pol'!BD93","v":0},{"$f":"'310 3357310 Pol'!BE93","v":0}]
[{"$f":"'310 3357310 Pol'!B94","v":"45"},{"$f":"'310 3357310 Pol'!C94","v":"Podkladní a vedlejší konstrukce"},null,null,{"$f":"'310 3357310 Pol'!BA97","v":0},{"$f":"'310 3357310 Pol'!BB97","v":0},{"$f":"'310 3357310 Pol'!BC97","v":0},{"$f":"'310 3357310 Pol'!BD97","v":0},{"$f":"'310 3357310 Pol'!BE97","v":0}]
[{"$f":"'310 3357310 Pol'!B98","v":"5"},{"$f":"'310 3357310 Pol'!C98","v":"Komunikace"},null,null,{"$f":"'310 3357310 Pol'!BA107","v":0},{"$f":"'310 3357310 Pol'!BB107","v":0},{"$f":"'310 3357310 Pol'!BC107","v":0},{"$f":"'310 3357310 Pol'!BD107","v":0},{"$f":"'310 3357310 Pol'!BE107","v":0}]
[{"$f":"'310 3357310 Pol'!B108","v":"8"},{"$f":"'310 3357310 Pol'!C108","v":"Trubní vedení"},null,null,{"$f":"'310 3357310 Pol'!BA158","v":0},{"$f":"'310 3357310 Pol'!BB158","v":0},{"$f":"'310 3357310 Pol'!BC158","v":0},{"$f":"'310 3357310 Pol'!BD158","v":0},{"$f":"'310 3357310 Pol'!BE158","v":0}]
[{"$f":"'310 3357310 Pol'!B159","v":"99"},{"$f":"'310 3357310 Pol'!C159","v":"Staveništní přesun hmot"},null,null,{"$f":"'310 3357310 Pol'!BA161","v":0},{"$f":"'310 3357310 Pol'!BB161","v":0},{"$f":"'310 3357310 Pol'!BC161","v":0},{"$f":"'310 3357310 Pol'!BD161","v":0},{"$f":"'310 3357310 Pol'!BE161","v":0}]
[null,"CELKEM  OBJEKT",null,null,{"$f":"SUM(E7:E11)","v":0},{"$f":"SUM(F7:F11)","v":0},{"$f":"SUM(G7:G11)","v":0},{"$f":"SUM(H7:H11)","v":0},{"$f":"SUM(I7:I11)","v":0}]
[]
["VEDLEJŠÍ ROZPOČTOVÉ  NÁKLADY"]
[]
["Název VRN",null,null,null,"Kč",null,null,null,"Kč"]
["Zařízení staveniště",null,null,null,0,null,null,null,{"$f":"E17+F17*G17/100","v":0},null,null,null,null,null,null,null,null,null,null,null,null,null,null,null,null,null,null,null,null,null,null,null,null,null,null,null,null,null,null,null,null,null,null,null,null,null,null,null,null,null,null,null,2]
["Kompletační činnost (IČD)",null,null,null,0,null,null,null,0,null,null,null,null,null,null,null,null,null,null,null,null,null,null,null,null,null,null,null,null,null,null,null,null,null,null,null,null,null,null,null,null,null,null,null,null,null,null,null,null,null,null,null,2]
["Vytýčení stavby a podz. inženýrských sítí",null,null,null,0,null,null,null,0,null,null,null,null,null,null,null,null,null,null,null,null,null,null,null,null,null,null,null,null,null,null,null,null,null,null,null,null,null,null,null,null,null,null,null,null,null,null,null,null,null,null,null,0]
["Dokumentace skutečného provedení",null,null,null,0,null,null,null,0,null,null,null,null,null,null,null,null,null,null,null,null,null,null,null,null,null,null,null,null,null,null,null,null,null,null,null,null,null,null,null,null,null,null,null,null,null,null,null,null,null,null,null,0]
["Geodetické zaměření stavby",null,null,null,0,null,null,null,0,null,null,null,null,null,null,null,null,null,null,null,null,null,null,null,null,null,null,null,null,null,null,null,null,null,null,null,null,null,null,null,null,null,null,null,null,null,null,null,null,null,null,null,0]
["DIO",null,null,null,0,null,null,null,0,null,null,null,null,null,null,null,null,null,null,null,null,null,null,null,null,null,null,null,null,null,null,null,null,null,null,null,null,null,null,null,null,null,null,null,null,null,null,null,null,null,null,null,0]
[null,"CELKEM VRN",null,null,null,null,null,{"$f":"SUM(I17:I22)","v":0}]

{"sheet":"310 3357310 Pol","index":3,"n_rows":161,"n_cols":80,"rows_kept":161,"cut":false,"hidden":false,"merged":[[0,0,0,6],[2,0,2,1],[3,0,3,1],[3,4,3,6],[8,2,8,3],[10,2,10,3],[12,2,12,3],[14,2,14,3],[24,2,24,6],[25,2,25,3],[26,2,26,3],[27,2,27,3],[28,2,28,3],[29,2,29,3],[15,2,15,3],[16,2,16,3],[18,2,18,3],[19,2,19,3],[20,2,20,3],[22,2,22,3],[38,2,38,3],[39,2,39,3],[41,2,41,3],[42,2,42,3],[44,2,44,3],[45,2,45,3],[30,2,30,3],[32,2,32,6],[33,2,33,3],[34,2,34,3],[35,2,35,3],[37,2,37,3],[54,2,54,6],[55,2,55,3],[56,2,56,3],[57,2,57,3],[58,2,58,3],[59,2,59,3],[47,2,47,3],[48,2,48,3],[49,2,49,3],[50,2,50,3],[51,2,51,3],[53,2,53,6],[66,2,66,3],[68,2,68,3],[70,2,70,3],[71,2,71,3],[72,2,72,3],[73,2,73,3],[60,2,60,3],[61,2,61,3],[62,2,62,3],[63,2,63,3],[64,2,64,3],[65,2,65,3],[88,2,88,3],[89,2,89,3],[90,2,90,3],[91,2,91,3],[95,2,95,3],[74,2,74,3],[76,2,76,3],[78,2,78,3],[83,2,83,6],[85,2,85,3],[87,2,87,3],[109,2,109,6],[110,2,110,3],[112,2,112,6],[113,2,113,6],[114,2,114,3],[115,2,115,3],[117,2,117,6],[118,2,118,3],[99,2,99,3],[101,2,101,3],[103,2,103,3],[105,2,105,3],[127,2,127,3],[128,2,128,3],[130,2,130,6],[131,2,131,3],[132,2,132,3],[134,2,134,3],[120,2,120,6],[121,2,121,3],[123,2,123,6],[124,2,124,6],[125,2,125,6],[126,2,126,6],[153,2,153,3],[155,2,155,3],[156,2,156,3],[145,2,145,3],[147,2,147,3],[148,2,148,3],[150,2,150,3],[151,2,151,3],[136,2,136,6],[137,2,137,3],[139,2,139,3],[141,2,141,6],[142,2,142,3],[143,2,143,3]]}
["Položkový rozpočet "]
[]
["Stavba :",null,"3357 Přípojky pro p.p.č. 1005/8 v k.ú. Turnov",null,"Rozpočet:",{"$f":"'310 3357310 Rek'!H1","v":"3357/310"}]
["Objekt :",null,"310 Vodovodní přípojka",null,{"$f":"'310 3357310 Rek'!G2","v":"Vodovodní přípojka"}]
[]
["P.č.","Číslo položky","Název položky","MJ","množství","cena / MJ","celkem (Kč)","Jednotková hmotnost","Celková hmotnost","Jednotková dem.hmot.","Celková dem.hmot."]
["Díl:","1","Zemní práce",null,null,null,null,null,null,null,null,null,null,null,1]
[1,"113107520R00","Odstranění podkladu pl. 50 m2,kam.drcené tl.20 cm ","m2",2.8,null,{"$f":"E8*F8","v":0},0,{"$f":"E8*H8","v":0},-0.44,{"$f":"E8*J8","v":-1.232},null,null,null,2,null,null,null,null,null,null,null,null,null,null,null,1,1,1,null,null,null,null,null,null,null,null,null,null,null,null,null,null,null,null,null,null,null,null,null,null,1,{"$f":"IF(AZ8=1,G8,0)","v":0},{"$f":"IF(AZ8=2,G8,0)","v":0},{"$f":"IF(AZ8=3,G8,0)","v":0},{"$f":"IF(AZ8=4,G8,0)","v":0},{"$f":"IF(AZ8=5,G8,0)","v":0},null,null,null,null,null,null,null,null,null,null,null,null,null,null,null,null,null,null,null,null,null,1,1]
[null,null,"Vodovodní přípojka PE D 32x3,0 mm:3,50*0,80",null,2.8,null,null,null,null,null,null,null,"Vodovodní přípojka PE D 32x3,0 mm:3,50*0,80"]
[2,"113108310R00","Odstranění asfaltové vrstvy pl. do 50 m2, tl.10 cm ","m2",2.8,null,{"$f":"E10*F10","v":0},0,{"$f":"E10*H10","v":0},-0.22,{"$f":"E10*J10","v":-0.61599999999999999},null,null,null,2,null,null,null,null,null,null,null,null,null,null,null,1,1,1,null,null,null,null,null,null,null,null,null,null,null,null,null,null,null,null,null,null,null,null,null,null,1,{"$f":"IF(AZ10=1,G10,0)","v":0},{"$f":"IF(AZ10=2,G10,0)","v":0},{"$f":"IF(AZ10=3,G10,0)","v":0},{"$f":"IF(AZ10=4,G10,0)","v":0},{"$f":"IF(AZ10=5,G10,0)","v":0},null,null,null,null,null,null,null,null,null,null,null,null,null,null,null,null,null,null,null,null,null,1,1]
[null,null,"Vodovodní přípojka PE D 32x3,0 mm:3,50*0,80",null,2.8,null,null,null,null,null,null,null,"Vodovodní přípojka PE D 32x3,0 mm:3,50*0,80"]
[3,"113109315R00","Odstranění podkladu pl.50 m2, bet.prostý tl.15 cm ","m2",2.8,null,{"$f":"E12*F12","v":0},0,{"$f":"E12*H12","v":0},-0.36,{"$f":"E12*J12","v":-1.008},null,null,null,2,null,null,null,null,null,null,null,null,null,null,null,1,1,1,null,null,null,null,null,null,null,null,null,null,null,null,null,null,null,null,null,null,null,null,null,null,1,{"$f":"IF(AZ12=1,G12,0)","v":0},{"$f":"IF(AZ12=2,G12,0)","v":0},{"$f":"IF(AZ12=3,G12,0)","v":0},{"$f":"IF(AZ12=4,G12,0)","v":0},{"$f":"IF(AZ12=5,G12,0)","v":0},null,null,null,null,null,null,null,null,null,null,null,null,null,null,null,null,null,null,null,null,null,1,1]
[null,null,"Vodovodní přípojka PE D 32x3,0 mm:3,50*0,80",null,2.8,null,null,null,null,null,null,null,"Vodovodní přípojka PE D 32x3,0 mm:3,50*0,80"]
[4,"119001401R00","Dočasné zajištění ocelového potrubí do DN 200 mm ","m",2.4,null,{"$f":"E14*F14","v":0},8.6899999999999998E-3,{"$f":"E14*H14","v":2.0856E-2},0,{"$f":"E14*J14","v":0},null,null,null,2,null,null,null,null,null,null,null,null,null,null,null,1,1,1,null,null,null,null,null,null,null,null,null,null,null,null,null,null,null,null,null,null,null,null,null,null,1,{"$f":"IF(AZ14=1,G14,0)","v":0},{"$f":"IF(AZ14=2,G14,0)","v":0},{"$f":"IF(AZ14=3,G14,0)","v":0},{"$f":"IF(AZ14=4,G14,0)","v":0},{"$f":"IF(AZ14=5,G14,0)","v":0},null,null,null,null,null,null,null,null,null,null,null,null,null,null,null,null,null,null,null,null,null,1,1]
[null,null,"Vodovodní přípojka PE D 32x3,0 mm:",null,0,null,null,null,null,null,null,null,"Vodovodní přípojka PE D 32x3,0 mm:"]
[null,null,"Vodovod :0,80*2",null,1.6,null,null,null,null,null,null,null,"Vodovod :0,80*2"]
[null,null,"STL plyn:0,80*1",null,0.8,null,null,null,null,null,null,null,"STL plyn:0,80*1"]
[5,"119001421R00","Dočasné zajištění kabelů - do počtu 3 kabelů ","m",1.6,null,{"$f":"E18*F18","v":0},2.478E-2,{"$f":"E18*H18","v":3.9648000000000003E-2},0,{"$f":"E18*J18","v":0},null,null,null,2,null,null,null,null,null,null,null,null,null,null,null,1,1,1,null,null,null,null,null,null,null,null,null,null,null,null,null,null,null,null,null,null,null,null,null,null,1,{"$f":"IF(AZ18=1,G18,0)","v":0},{"$f":"IF(AZ18=2,G18,0)","v":0},{"$f":"IF(AZ18=3,G18,0)","v":0},{"$f":"IF(AZ18=4,G18,0)","v":0},{"$f":"IF(AZ18=5,G18,0)","v":0},null,null,null,null,null,null,null,null,null,null,null,null,null,null,null,null,null,null,null,null,null,1,1]
[null,null,"Vodovodní přípojka PE D 32x3,0 mm:",null,0,null,null,null,null,null,null,null,"Vodovodní přípojka PE D 32x3,0 mm:"]
[null,null,"Vedení NN:0,80*1",null,0.8,null,null,null,null,null,null,null,"Vedení NN:0,80*1"]
[null,null,"Vedení VO:0,80*1",null,0.8,null,null,null,null,null,null,null,"Vedení VO:0,80*1"]
[6,"121100002RAA","Sejmutí ornice a uložení na deponii zpětný přesun, rozprostření v tl. 20 cm","m3",1.05,null,{"$f":"E22*F22","v":0},0,{"$f":"E22*H22","v":0},0,{"$f":"E22*J22","v":0},null,null,null,2,null,null,null,null,null,null,null,null,null,null,null,1,1,1,null,null,null,null,null,null,null,null,null,null,null,null,null,null,null,null,null,null,null,null,null,null,1,{"$f":"IF(AZ22=1,G22,0)","v":0},{"$f":"IF(AZ22=2,G22,0)","v":0},{"$f":"IF(AZ22=3,G22,0)","v":0},{"$f":"IF(AZ22=4,G22,0)","v":0},{"$f":"IF(AZ22=5,G22,0)","v":0},null,null,null,null,null,null,null,null,null,null,null,null,null,null,null,null,null,null,null,null,null,1,1]
[null,null,"Vodovodní přípojka PE D 32x3,0 mm:3,50*1,50*0,20",null,1.05,null,null,null,null,null,null,null,"Vodovodní přípojka PE D 32x3,0 mm:3,50*1,50*0,20"]
[7,"130001101RRX","Příplatek za ztížené hloubení v blízkosti vedení ","m3",4.8449999999999998,null,{"$f":"E24*F24","v":0},0,{"$f":"E24*H24","v":0},0,{"$f":"E24*J24","v":0},null,null,null,2,null,null,null,null,null,null,null,null,null,null,null,1,0,0,null,null,null,null,null,null,null,null,null,null,null,null,null,null,null,null,null,null,null,null,null,null,1,{"$f":"IF(AZ24=1,G24,0)","v":0},{"$f":"IF(AZ24=2,G24,0)","v":0},{"$f":"IF(AZ24=3,G24,0)","v":0},{"$f":"IF(AZ24=4,G24,0)","v":0},{"$f":"IF(AZ24=5,G24,0)","v":0},null,null,null,null,null,null,null,null,null,null,null,null,null,null,null,null,null,null,null,null,null,1,0]
[null,null,"Včetně případných nutných dokopávek a ručního výkopu podél sousedících inženýrských sítí a provedení sond před samotnou realizací výkopů.",null,null,null,null,null,null,null,null,"Včetně případných nutných dokopávek a ručního výkopu podél sousedících inženýrských sítí a provedení sond před samotnou realizací výkopů.",null,null,3]
[null,null,"Začátek provozního součtu",null,0,null,null,null,null,null,null,null,"Začátek provozního součtu"]
[null,null,"Vodovodní přípojka PE D 32x3,0 mm:3,50*0,80*((1,75+1,35)/2-0,45)",null,3.08,null,null,null,null,null,null,null,"Vodovodní přípojka PE D 32x3,0 mm:3,50*0,80*((1,75+1,35)/2-0,45)"]
[null,null,"1,50*0,80*((1,75+1,35)/2-0,20)",null,1.62,null,null,null,null,null,null,null,"1,50*0,80*((1,75+1,35)/2-0,20)"]
[null,null,"1,50*1,50*(1,70-0,20)",null,3.375,null,null,null,null,null,null,null,"1,50*1,50*(1,70-0,20)"]
[null,null,"Konec provozního součtu",null,8.0749999999999993,null,null,null,null,null,null,null,"Konec provozního součtu"]
[null,null,"Příplatek z 60%:8,0750*0,6",null,4.8449999999999998,null,null,null,null,null,null,null,"Příplatek z 60%:8,0750*0,6"]
[8,"132201210R00","Hloubení rýh š.do 200 cm hor.3 do 50 m3,STROJNĚ ","m3",8.0749999999999993,null,{"$f":"E32*F32","v":0},0,{"$f":"E32*H32","v":0},0,{"$f":"E32*J32","v":0},null,null,null,2,null,null,null,null,null,null,null,null,null,null,null,1,1,1,null,null,null,null,null,null,null,null,null,null,null,null,null,null,null,null,null,null,null,null,null,null,1,{"$f":"IF(AZ32=1,G32,0)","v":0},{"$f":"IF(AZ32=2,G32,0)","v":0},{"$f":"IF(AZ32=3,G32,0)","v":0},{"$f":"IF(AZ32=4,G32,0)","v":0},{"$f":"IF(AZ32=5,G32,0)","v":0},null,null,null,null,null,null,null,null,null,null,null,null,null,null,null,null,null,null,null,null,null,1,1]
[null,null,"Položka obsahuje hloubení rýh traktorbagrem, naložení výkopku na dopravní prostředek pro svislé, nebo vodorovné přemístění, popř. přemístění výkopku do 3 m (po povrchu území), případné zajištění rypadel polštáři, udržování pracoviště a ochranu výkopiště proti stékání srážkové vody z okolního terénu i s jejím odvodněním, nebo odvedením, přesekání a odstranění kořenů ve výkopišti, odstranění napadávek, urovnání dna výkopu.",null,null,null,null,null,null,null,null,"Položka obsahuje hloubení rýh traktorbagrem, naložení výkopku na dopravní prostředek pro svislé, nebo vodorovné přemístění, popř. přemístění výkopku do 3 m (po povrchu území), případné zajištění rypadel polštáři, udržování pracoviště a ochranu výkopiště proti stékání srážkové vody z okolního terénu i s jejím odvodněním, nebo odvedením, přesekání a odstranění kořenů ve výkopišti, odstranění napadávek, urovnání dna výkopu.",null,null,3]
[null,null,"Vodovodní přípojka PE D 32x3,0 mm:3,50*0,80*((1,75+1,35)/2-0,45)",null,3.08,null,null,null,null,null,null,null,"Vodovodní přípojka PE D 32x3,0 mm:3,50*0,80*((1,75+1,35)/2-0,45)"]
[null,null,"1,50*0,80*((1,75+1,35)/2-0,20)",null,1.62,null,null,null,null,null,null,null,"1,50*0,80*((1,75+1,35)/2-0,20)"]
[null,null,"1,50*1,50*(1,70-0,20)",null,3.375,null,null,null,null,null,null,null,"1,50*1,50*(1,70-0,20)"]
[9,"132201219R00","Přípl.za lepivost,hloubení rýh 200cm,hor.3,STROJNĚ ","m3",8.0749999999999993,null,{"$f":"E37*F37","v":0},0,{"$f":"E37*H37","v":0},0,{"$f":"E37*J37","v":0},null,null,null,2,null,null,null,null,null,null,null,null,null,null,null,1,1,1,null,null,null,null,null,null,null,null,null,null,null,null,null,null,null,null,null,null,null,null,null,null,1,{"$f":"IF(AZ37=1,G37,0)","v":0},{"$f":"IF(AZ37=2,G37,0)","v":0},{"$f":"IF(AZ37=3,G37,0)","v":0},{"$f":"IF(AZ37=4,G37,0)","v":0},{"$f":"IF(AZ37=5,G37,0)","v":0},null,null,null,null,null,null,null,null,null,null,null,null,null,null,null,null,null,null,null,null,null,1,1]
[null,null,"Vodovodní přípojka PE D 32x3,0 mm:3,50*0,80*((1,75+1,35)/2-0,45)",null,3.08,null,null,null,null,null,null,null,"Vodovodní přípojka PE D 32x3,0 mm:3,50*0,80*((1,75+1,35)/2-0,45)"]
[null,null,"1,50*0,80*((1,75+1,35)/2-0,20)",null,1.62,null,null,null,null,null,null,null,"1,50*0,80*((1,75+1,35)/2-0,20)"]
[null,null,"1,50*1,50*(1,70-0,20)",null,3.375,null,null,null,null,null,null,null,"1,50*1,50*(1,70-0,20)"]
[10,"151101101R00","Pažení a rozepření stěn rýh - příložné - hl.do 2 m ","m2",20.6,null,{"$f":"E41*F41","v":0},9.8999999999999999E-4,{"$f":"E41*H41","v":2.0394000000000002E-2},0,{"$f":"E41*J41","v":0},null,null,null,2,null,null,null,null,null,null,null,null,null,null,null,1,1,1,null,null,null,null,null,null,null,null,null,null,null,null,null,null,null,null,null,null,null,null,null,null,1,{"$f":"IF(AZ41=1,G41,0)","v":0},{"$f":"IF(AZ41=2,G41,0)","v":0},{"$f":"IF(AZ41=3,G41,0)","v":0},{"$f":"IF(AZ41=4,G41,0)","v":0},{"$f":"IF(AZ41=5,G41,0)","v":0},null,null,null,null,null,null,null,null,null,null,null,null,null,null,null,null,null,null,null,null,null,1,1]
[null,null,"Vodovodní přípojka PE D 32x3,0 mm:5,00*(1,75+1,35)/2*2",null,15.5,null,null,null,null,null,null,null,"Vodovodní přípojka PE D 32x3,0 mm:5,00*(1,75+1,35)/2*2"]
[null,null,"1,50*1,70*2",null,5.0999999999999996,null,null,null,null,null,null,null,"1,50*1,70*2"]
[11,"151101111R00","Odstranění pažení stěn rýh - příložné - hl. do 2 m ","m2",20.6,null,{"$f":"E44*F44","v":0},0,{"$f":"E44*H44","v":0},0,{"$f":"E44*J44","v":0},null,null,null,2,null,null,null,null,null,null,null,null,null,null,null,1,1,1,null,null,null,null,null,null,null,null,null,null,null,null,null,null,null,null,null,null,null,null,null,null,1,{"$f":"IF(AZ44=1,G44,0)","v":0},{"$f":"IF(AZ44=2,G44,0)","v":0},{"$f":"IF(AZ44=3,G44,0)","v":0},{"$f":"IF(AZ44=4,G44,0)","v":0},{"$f":"IF(AZ44=5,G44,0)","v":0},null,null,null,null,null,null,null,null,null,null,null,null,null,null,null,null,null,null,null,null,null,1,1]
[null,null,"Vodovodní přípojka PE D 32x3,0 mm:5,00*(1,75+1,35)/2*2",null,15.5,null,null,null,null,null,null,null,"Vodovodní přípojka PE D 32x3,0 mm:5,00*(1,75+1,35)/2*2"]
[null,null,"1,50*1,70*2",null,5.0999999999999996,null,null,null,null,null,null,null,"1,50*1,70*2"]
[12,"162701105RSZ","Vodorovné přemístění výkopku z hor.1-7 na skládku zhotovitele","m3",5.3548999999999998,null,{"$f":"E47*F47","v":0},0,{"$f":"E47*H47","v":0},0,{"$f":"E47*J47","v":0},null,null,null,2,null,null,null,null,null,null,null,null,null,null,null,1,1,1,null,null,null,null,null,null,null,null,null,null,null,null,null,null,null,null,null,null,null,null,null,null,1,{"$f":"IF(AZ47=1,G47,0)","v":0},{"$f":"IF(AZ47=2,G47,0)","v":0},{"$f":"IF(AZ47=3,G47,0)","v":0},{"$f":"IF(AZ47=4,G47,0)","v":0},{"$f":"IF(AZ47=5,G47,0)","v":0},null,null,null,null,null,null,null,null,null,null,null,null,null,null,null,null,null,null,null,null,null,1,1]
[null,null,"Výkopy:",null,0,null,null,null,null,null,null,null,"Výkopy:"]
[null,null,"Vodovodní přípojka PE D 32x3,0 mm:3,50*0,80*((1,75+1,35)/2-0,45)",null,3.08,null,null,null,null,null,null,null,"Vodovodní přípojka PE D 32x3,0 mm:3,50*0,80*((1,75+1,35)/2-0,45)"]
[null,null,"1,50*0,80*((1,75+1,35)/2-0,20)",null,1.62,null,null,null,null,null,null,null,"1,50*0,80*((1,75+1,35)/2-0,20)"]
[null,null,"1,50*1,50*(1,70-0,20)",null,3.375,null,null,null,null,null,null,null,"1,50*1,50*(1,70-0,20)"]
[null,null,"Odpočet zásypů zeminou:-2,7201",null,-2.7201,null,null,null,null,null,null,null,"Odpočet zásypů zeminou:-2,7201"]
[13,"174101101R00","Zásyp jam, rýh, šachet se zhutněním ","m3",4.4504999999999999,null,{"$f":"E53*F53","v":0},0,{"$f":"E53*H53","v":0},0,{"$f":"E53*J53","v":0},null,null,null,2,null,null,null,null,null,null,null,null,null,null,null,1,1,1,null,null,null,null,null,null,null,null,null,null,null,null,null,null,null,null,null,null,null,null,null,null,1,{"$f":"IF(AZ53=1,G53,0)","v":0},{"$f":"IF(AZ53=2,G53,0)","v":0},{"$f":"IF(AZ53=3,G53,0)","v":0},{"$f":"IF(AZ53=4,G53,0)","v":0},{"$f":"IF(AZ53=5,G53,0)","v":0},null,null,null,null,null,null,null,null,null,null,null,null,null,null,null,null,null,null,null,null,null,1,1]
[null,null,"Položka obsahuje strojní přemístění materiálu pro zásyp ze vzdálenosti do 10 m od okraje zásypu.",null,null,null,null,null,null,null,null,"Položka obsahuje strojní přemístění materiálu pro zásyp ze vzdálenosti do 10 m od okraje zásypu.",null,null,3]
[null,null,null,null,null,null,null,null,null,null,null,null,null,null,3]
[null,null,"Zásyp zeminou:2,7201",null,2.7201,null,null,null,null,null,null,null,"Zásyp zeminou:2,7201"]
[null,null,"Začátek provozního součtu",null,0,null,null,null,null,null,null,null,"Začátek provozního součtu"]
[null,null,"Vodovodní přípojka PE D 32x3,0 mm:1,50*0,80*((1,75+1,35)/2-0,20)",null,1.62,null,null,null,null,null,null,null,"Vodovodní přípojka PE D 32x3,0 mm:1,50*0,80*((1,75+1,35)/2-0,20)"]
[null,null,"1,50*1,50*(1,70-0,20)",null,3.375,null,null,null,null,null,null,null,"1,50*1,50*(1,70-0,20)"]
[null,null,"Odpočet lože, potrubí a obsypů:-1,50*0,80*(0,15+0,032+0,30)",null,-0.57840000000000003,null,null,null,null,null,null,null,"Odpočet lože, potrubí a obsypů:-1,50*0,80*(0,15+0,032+0,30)"]
[null,null,"Odpočet objemu VŠ:-0,60^2*Pi*(1,70-0,20)",null,-1.6964999999999999,null,null,null,null,null,null,null,"Odpočet objemu VŠ:-0,60^2*Pi*(1,70-0,20)"]
[null,null,"Konec provozního součtu",null,2.7201,null,null,null,null,null,null,null,"Konec provozního součtu"]
[null,null,"Zásyp ŠD fr. 0-63 mm v komunikaci:1,7304",null,1.7303999999999999,null,null,null,null,null,null,null,"Zásyp ŠD fr. 0-63 mm v komunikaci:1,7304"]
[null,null,"Začátek provozního součtu",null,0,null,null,null,null,null,null,null,"Začátek provozního součtu"]
[null,null,"Vodovodní přípojka PE D 32x3,0 mm:3,50*0,80*((1,75+1,35)/2-0,45)",null,3.08,null,null,null,null,null,null,null,"Vodovodní přípojka PE D 32x3,0 mm:3,50*0,80*((1,75+1,35)/2-0,45)"]
[null,null,"Odpočet objemu lože, potrubí a obsypů:-3,50*0,80*(0,15+0,032+0,30)",null,-1.3495999999999999,null,null,null,null,null,null,null,"Odpočet objemu lože, potrubí a obsypů:-3,50*0,80*(0,15+0,032+0,30)"]
[null,null,"Konec provozního součtu",null,1.7304000000000002,null,null,null,null,null,null,null,"Konec provozního součtu"]
[14,"175101101R00","Obsyp potrubí bez prohození sypaniny ","m3",1.3240000000000001,null,{"$f":"E68*F68","v":0},0,{"$f":"E68*H68","v":0},0,{"$f":"E68*J68","v":0},null,null,null,2,null,null,null,null,null,null,null,null,null,null,null,1,1,1,null,null,null,null,null,null,null,null,null,null,null,null,null,null,null,null,null,null,null,null,null,null,1,{"$f":"IF(AZ68=1,G68,0)","v":0},{"$f":"IF(AZ68=2,G68,0)","v":0},{"$f":"IF(AZ68=3,G68,0)","v":0},{"$f":"IF(AZ68=4,G68,0)","v":0},{"$f":"IF(AZ68=5,G68,0)","v":0},null,null,null,null,null,null,null,null,null,null,null,null,null,null,null,null,null,null,null,null,null,1,1]
[null,null,"Vodovodní přípojka PE D 32x3,0 mm:5,00*(0,80*(0,032+0,30)-0,016^2*Pi)",null,1.3240000000000001,null,null,null,null,null,null,null,"Vodovodní přípojka PE D 32x3,0 mm:5,00*(0,80*(0,032+0,30)-0,016^2*Pi)"]
[15,"199000002R00","Poplatek za skládku horniny 1- 7 č. dle katal. odpadů 17 05 04","m3",5.3548999999999998,null,{"$f":"E70*F70","v":0},0,{"$f":"E70*H70","v":0},0,{"$f":"E70*J70","v":0},null,null,null,2,null,null,null,null,null,null,null,null,null,null,null,1,1,1,null,null,null,null,null,null,null,null,null,null,null,null,null,null,null,null,null,null,null,null,null,null,1,{"$f":"IF(AZ70=1,G70,0)","v":0},{"$f":"IF(AZ70=2,G70,0)","v":0},{"$f":"IF(AZ70=3,G70,0)","v":0},{"$f":"IF(AZ70=4,G70,0)","v":0},{"$f":"IF(AZ70=5,G70,0)","v":0},null,null,null,null,null,null,null,null,null,null,null,null,null,null,null,null,null,null,null,null,null,1,1]
[null,null,"Výkopy:",null,0,null,null,null,null,null,null,null,"Výkopy:"]
[null,null,"Vodovodní přípojka PE D 32x3,0 mm:3,50*0,80*((1,75+1,35)/2-0,45)",null,3.08,null,null,null,null,null,null,null,"Vodovodní přípojka PE D 32x3,0 mm:3,50*0,80*((1,75+1,35)/2-0,45)"]
[null,null,"1,50*0,80*((1,75+1,35)/2-0,20)",null,1.62,null,null,null,null,null,null,null,"1,50*0,80*((1,75+1,35)/2-0,20)"]
[null,null,"1,50*1,50*(1,70-0,20)",null,3.375,null,null,null,null,null,null,null,"1,50*1,50*(1,70-0,20)"]
[null,null,"Odpočet zásypů zeminou:-2,7201",null,-2.7201,null,null,null,null,null,null,null,"Odpočet zásypů zeminou:-2,7201"]
[16,"919735112R00","Řezání stávajícího živičného krytu tl. 5 - 10 cm ","m",7.8,null,{"$f":"E76*F76","v":0},0,{"$f":"E76*H76","v":0},0,{"$f":"E76*J76","v":0},null,null,null,2,null,null,null,null,null,null,null,null,null,null,null,1,1,1,null,null,null,null,null,null,null,null,null,null,null,null,null,null,null,null,null,null,null,null,null,null,1,{"$f":"IF(AZ76=1,G76,0)","v":0},{"$f":"IF(AZ76=2,G76,0)","v":0},{"$f":"IF(AZ76=3,G76,0)","v":0},{"$f":"IF(AZ76=4,G76,0)","v":0},{"$f":"IF(AZ76=5,G76,0)","v":0},null,null,null,null,null,null,null,null,null,null,null,null,null,null,null,null,null,null,null,null,null,1,1]
[null,null,"Vodovodní přípojka PE D 32x3,0 mm:3,50*2+0,80",null,7.8,null,null,null,null,null,null,null,"Vodovodní přípojka PE D 32x3,0 mm:3,50*2+0,80"]
[17,"919735123R00","Řezání stávajícího betonového krytu tl. 10 - 15 cm ","m",7.8,null,{"$f":"E78*F78","v":0},0,{"$f":"E78*H78","v":0},0,{"$f":"E78*J78","v":0},null,null,null,2,null,null,null,null,null,null,null,null,null,null,null,1,1,1,null,null,null,null,null,null,null,null,null,null,null,null,null,null,null,null,null,null,null,null,null,null,1,{"$f":"IF(AZ78=1,G78,0)","v":0},{"$f":"IF(AZ78=2,G78,0)","v":0},{"$f":"IF(AZ78=3,G78,0)","v":0},{"$f":"IF(AZ78=4,G78,0)","v":0},{"$f":"IF(AZ78=5,G78,0)","v":0},null,null,null,null,null,null,null,null,null,null,null,null,null,null,null,null,null,null,null,null,null,1,1]
[null,null,"Vodovodní přípojka PE D 32x3,0 mm:3,50*2+0,80",null,7.8,null,null,null,null,null,null,null,"Vodovodní přípojka PE D 32x3,0 mm:3,50*2+0,80"]
[18,"979082113RSZ","Vodorovná doprava suti po suchu na skládku zhotovitele","t",5.7119999999999997,null,{"$f":"E80*F80","v":0},0,{"$f":"E80*H80","v":0},0,{"$f":"E80*J80","v":0},null,null,null,2,null,null,null,null,null,null,null,null,null,null,null,1,1,1,null,null,null,null,null,null,null,null,null,null,null,null,null,null,null,null,null,null,null,null,null,null,1,{"$f":"IF(AZ80=1,G80,0)","v":0},{"$f":"IF(AZ80=2,G80,0)","v":0},{"$f":"IF(AZ80=3,G80,0)","v":0},{"$f":"IF(AZ80=4,G80,0)","v":0},{"$f":"IF(AZ80=5,G80,0)","v":0},null,null,null,null,null,null,null,null,null,null,null,null,null,null,null,null,null,null,null,null,null,1,1]
[19,"979089001R00","Poplatek za skládku stavební suti štěrky z komunikací, skupina odpadu 010408","t",1.232,null,{"$f":"E81*F81","v":0},0,{"$f":"E81*H81","v":0},0,{"$f":"E81*J81","v":0},null,null,null,2,null,null,null,null,null,null,null,null,null,null,null,1,1,1,null,null,null,null,null,null,null,null,null,null,null,null,null,null,null,null,null,null,null,null,null,null,1,{"$f":"IF(AZ81=1,G81,0)","v":0},{"$f":"IF(AZ81=2,G81,0)","v":0},{"$f":"IF(AZ81=3,G81,0)","v":0},{"$f":"IF(AZ81=4,G81,0)","v":0},{"$f":"IF(AZ81=5,G81,0)","v":0},null,null,null,null,null,null,null,null,null,null,null,null,null,null,null,null,null,null,null,null,null,1,1]
[20,"979990103R00","Poplatek za skládku stavební suti beton skupina odpadu 170101","t",1.008,null,{"$f":"E82*F82","v":0},0,{"$f":"E82*H82","v":0},0,{"$f":"E82*J82","v":0},null,null,null,2,null,null,null,null,null,null,null,null,null,null,null,1,1,1,null,null,null,null,null,null,null,null,null,null,null,null,null,null,null,null,null,null,null,null,null,null,1,{"$f":"IF(AZ82=1,G82,0)","v":0},{"$f":"IF(AZ82=2,G82,0)","v":0},{"$f":"IF(AZ82=3,G82,0)","v":0},{"$f":"IF(AZ82=4,G82,0)","v":0},{"$f":"IF(AZ82=5,G82,0)","v":0},null,null,null,null,null,null,null,null,null,null,null,null,null,null,null,null,null,null,null,null,null,1,1]
[21,"979999995R00","Poplatek za reciklaci asfaltu, kusovost do 1600cm2 skupina 170302","t",0.61599999999999999,null,{"$f":"E83*F83","v":0},0,{"$f":"E83*H83","v":0},0,{"$f":"E83*J83","v":0},null,null,null,2,null,null,null,null,null,null,null,null,null,null,null,1,1,1,null,null,null,null,null,null,null,null,null,null,null,null,null,null,null,null,null,null,null,null,null,null,1,{"$f":"IF(AZ83=1,G83,0)","v":0},{"$f":"IF(AZ83=2,G83,0)","v":0},{"$f":"IF(AZ83=3,G83,0)","v":0},{"$f":"IF(AZ83=4,G83,0)","v":0},{"$f":"IF(AZ83=5,G83,0)","v":0},null,null,null,null,null,null,null,null,null,null,null,null,null,null,null,null,null,null,null,null,null,1,1]
[null,null,"Položka je určena pro suť o velikosti kusu do 30x30 cm (technologický materiál určený k recyklaci).",null,null,null,null,null,null,null,null,"Položka je určena pro suť o velikosti kusu do 30x30 cm (technologický materiál určený k recyklaci).",null,null,3]
[22,"58337308R","Štěrkopísek frakce 0-2 tř.B","t",2.6383000000000001,null,{"$f":"E85*F85","v":0},1,{"$f":"E85*H85","v":2.6383000000000001},null,{"$f":"E85*J85","v":0},null,null,null,2,null,null,null,null,null,null,null,null,null,null,null,3,1,"58337308R",null,null,null,null,null,null,null,null,null,null,null,null,null,null,null,null,null,null,null,null,null,null,1,{"$f":"IF(AZ85=1,G85,0)","v":0},{"$f":"IF(AZ85=2,G85,0)","v":0},{"$f":"IF(AZ85=3,G85,0)","v":0},{"$f":"IF(AZ85=4,G85,0)","v":0},{"$f":"IF(AZ85=5,G85,0)","v":0},null,null,null,null,null,null,null,null,null,null,null,null,null,null,null,null,null,null,null,null,null,3,1]
[null,null,"Vodovodní přípojka PE D 32x3,0 mm:5,00*(0,80*(0,032+0,30)-0,016^2*Pi)*1,973*1,01",null,2.6383000000000001,null,null,null,null,null,null,null,"Vodovodní přípojka PE D 32x3,0 mm:5,00*(0,80*(0,032+0,30)-0,016^2*Pi)*1,973*1,01"]
[23,"58344197R","Štěrkodrtě frakce 0-63 A","t",3.2734000000000001,null,{"$f":"E87*F87","v":0},1,{"$f":"E87*H87","v":3.2734000000000001},null,{"$f":"E87*J87","v":0},null,null,null,2,null,null,null,null,null,null,null,null,null,null,null,3,1,"58344197R",null,null,null,null,null,null,null,null,null,null,null,null,null,null,null,null,null,null,null,null,null,null,1,{"$f":"IF(AZ87=1,G87,0)","v":0},{"$f":"IF(AZ87=2,G87,0)","v":0},{"$f":"IF(AZ87=3,G87,0)","v":0},{"$f":"IF(AZ87=4,G87,0)","v":0},{"$f":"IF(AZ87=5,G87,0)","v":0},null,null,null,null,null,null,null,null,null,null,null,null,null,null,null,null,null,null,null,null,null,3,1]
[null,null,"Zásyp ŠD fr. 0-63 mm v komunikaci:1,7304*1,873*1,01",null,3.2734000000000001,null,null,null,null,null,null,null,"Zásyp ŠD fr. 0-63 mm v komunikaci:1,7304*1,873*1,01"]
[null,null,"Začátek provozního součtu",null,0,null,null,null,null,null,null,null,"Začátek provozního součtu"]
[null,null,"Vodovodní přípojka PE D 32x3,0 mm:3,50*0,80*((1,75+1,35)/2-0,45)",null,3.08,null,null,null,null,null,null,null,"Vodovodní přípojka PE D 32x3,0 mm:3,50*0,80*((1,75+1,35)/2-0,45)"]
[null,null,"Odpočet objemu lože, potrubí a obsypů:-3,50*0,80*(0,15+0,032+0,30)",null,-1.3495999999999999,null,null,null,null,null,null,null,"Odpočet objemu lože, potrubí a obsypů:-3,50*0,80*(0,15+0,032+0,30)"]
[null,null,"Konec provozního součtu",null,1.7304000000000002,null,null,null,null,null,null,null,"Konec provozního součtu"]
[null,"Celkem za","1 Zemní práce",null,null,null,{"$f":"SUM(G7:G92)","v":0},null,{"$f":"SUM(I7:I92)","v":5.9925980000000001},null,{"$f":"SUM(K7:K92)","v":-2.8559999999999999},null,null,null,4,null,null,null,null,null,null,null,null,null,null,null,null,null,null,null,null,null,null,null,null,null,null,null,null,null,null,null,null,null,null,null,null,null,null,null,null,null,{"$f":"SUM(BA7:BA92)","v":0},{"$f":"SUM(BB7:BB92)","v":0},{"$f":"SUM(BC7:BC92)","v":0},{"$f":"SUM(BD7:BD92)","v":0},{"$f":"SUM(BE7:BE92)","v":0}]
["Díl:","45","Podkladní a vedlejší konstrukce",null,null,null,null,null,null,null,null,null,null,null,1]
[24,"451572111R00","Lože pod potrubí z kameniva těženého 0 - 4 mm ","m3",0.6,null,{"$f":"E95*F95","v":0},1.873,{"$f":"E95*H95","v":1.1237999999999999},0,{"$f":"E95*J95","v":0},null,null,null,2,null,null,null,null,null,null,null,null,null,null,null,1,1,1,null,null,null,null,null,null,null,null,null,null,null,null,null,null,null,null,null,null,null,null,null,null,1,{"$f":"IF(AZ95=1,G95,0)","v":0},{"$f":"IF(AZ95=2,G95,0)","v":0},{"$f":"IF(AZ95=3,G95,0)","v":0},{"$f":"IF(AZ95=4,G95,0)","v":0},{"$f":"IF(AZ95=5,G95,0)","v":0},null,null,null,null,null,null,null,null,null,null,null,null,null,null,null,null,null,null,null,null,null,1,1]
[null,null,"Vodovodní přípojka PE D 32x3,0 mm:5,00*0,80*0,15",null,0.6,null,null,null,null,null,null,null,"Vodovodní přípojka PE D 32x3,0 mm:5,00*0,80*0,15"]
[null,"Celkem za","45 Podkladní a vedlejší konstrukce",null,null,null,{"$f":"SUM(G94:G96)","v":0},null,{"$f":"SUM(I94:I96)","v":1.1237999999999999},null,{"$f":"SUM(K94:K96)","v":0},null,null,null,4,null,null,null,null,null,null,null,null,null,null,null,null,null,null,null,null,null,null,null,null,null,null,null,null,null,null,null,null,null,null,null,null,null,null,null,null,null,{"$f":"SUM(BA94:BA96)","v":0},{"$f":"SUM(BB94:BB96)","v":0},{"$f":"SUM(BC94:BC96)","v":0},{"$f":"SUM(BD94:BD96)","v":0},{"$f":"SUM(BE94:BE96)","v":0}]
["Díl:","5","Komunikace",null,null,null,null,null,null,null,null,null,null,null,1]
[25,"566903111R00","Vyspravení podkladu po překopech kam.hrubě drceným ","t",1.0488999999999999,null,{"$f":"E99*F99","v":0},1.1000000000000001,{"$f":"E99*H99","v":1.1537900000000001},0,{"$f":"E99*J99","v":0},null,null,null,2,null,null,null,null,null,null,null,null,null,null,null,1,1,1,null,null,null,null,null,null,null,null,null,null,null,null,null,null,null,null,null,null,null,null,null,null,1,{"$f":"IF(AZ99=1,G99,0)","v":0},{"$f":"IF(AZ99=2,G99,0)","v":0},{"$f":"IF(AZ99=3,G99,0)","v":0},{"$f":"IF(AZ99=4,G99,0)","v":0},{"$f":"IF(AZ99=5,G99,0)","v":0},null,null,null,null,null,null,null,null,null,null,null,null,null,null,null,null,null,null,null,null,null,1,1]
[null,null,"Vodovodní přípojka PE D 32x3,0 mm:3,50*0,80*0,20*1,873",null,1.0488999999999999,null,null,null,null,null,null,null,"Vodovodní přípojka PE D 32x3,0 mm:3,50*0,80*0,20*1,873"]
[26,"566904111R00","Vyspravení podkladu po překopech kam.obal.asfaltem ","t",0.7,null,{"$f":"E101*F101","v":0},1,{"$f":"E101*H101","v":0.7},0,{"$f":"E101*J101","v":0},null,null,null,2,null,null,null,null,null,null,null,null,null,null,null,1,1,1,null,null,null,null,null,null,null,null,null,null,null,null,null,null,null,null,null,null,null,null,null,null,1,{"$f":"IF(AZ101=1,G101,0)","v":0},{"$f":"IF(AZ101=2,G101,0)","v":0},{"$f":"IF(AZ101=3,G101,0)","v":0},{"$f":"IF(AZ101=4,G101,0)","v":0},{"$f":"IF(AZ101=5,G101,0)","v":0},null,null,null,null,null,null,null,null,null,null,null,null,null,null,null,null,null,null,null,null,null,1,1]
[null,null,"Vodovodní přípojka PE D 32x3,0 mm:3,50*0,80*0,10*2,5",null,0.7,null,null,null,null,null,null,null,"Vodovodní přípojka PE D 32x3,0 mm:3,50*0,80*0,10*2,5"]
[27,"566905111R00","Vyspravení podkladu po překopech podklad.betonem ","m3",0.42,null,{"$f":"E103*F103","v":0},2.5,{"$f":"E103*H103","v":1.05},0,{"$f":"E103*J103","v":0},null,null,null,2,null,null,null,null,null,null,null,null,null,null,null,1,1,1,null,null,null,null,null,null,null,null,null,null,null,null,null,null,null,null,null,null,null,null,null,null,1,{"$f":"IF(AZ103=1,G103,0)","v":0},{"$f":"IF(AZ103=2,G103,0)","v":0},{"$f":"IF(AZ103=3,G103,0)","v":0},{"$f":"IF(AZ103=4,G103,0)","v":0},{"$f":"IF(AZ103=5,G103,0)","v":0},null,null,null,null,null,null,null,null,null,null,null,null,null,null,null,null,null,null,null,null,null,1,1]
[null,null,"Vodovodní přípojka PE D 32x3,0 mm:3,50*0,80*0,15",null,0.42,null,null,null,null,null,null,null,"Vodovodní přípojka PE D 32x3,0 mm:3,50*0,80*0,15"]
[28,"573111121R00","Postřik infiltr., množství zbytkov. poj. 0,60kg/m2 ","m2",2.8,null,{"$f":"E105*F105","v":0},5.6100000000000004E-3,{"$f":"E105*H105","v":1.5708E-2},0,{"$f":"E105*J105","v":0},null,null,null,2,null,null,null,null,null,null,null,null,null,null,null,1,1,1,null,null,null,null,null,null,null,null,null,null,null,null,null,null,null,null,null,null,null,null,null,null,1,{"$f":"IF(AZ105=1,G105,0)","v":0},{"$f":"IF(AZ105=2,G105,0)","v":0},{"$f":"IF(AZ105=3,G105,0)","v":0},{"$f":"IF(AZ105=4,G105,0)","v":0},{"$f":"IF(AZ105=5,G105,0)","v":0},null,null,null,null,null,null,null,null,null,null,null,null,null,null,null,null,null,null,null,null,null,1,1]
[null,null,"Vodovodní přípojka PE D 32x3,0 mm:3,50*0,80",null,2.8,null,null,null,null,null,null,null,"Vodovodní přípojka PE D 32x3,0 mm:3,50*0,80"]
[null,"Celkem za","5 Komunikace",null,null,null,{"$f":"SUM(G98:G106)","v":0},null,{"$f":"SUM(I98:I106)","v":2.9194979999999999},null,{"$f":"SUM(K98:K106)","v":0},null,null,null,4,null,null,null,null,null,null,null,null,null,null,null,null,null,null,null,null,null,null,null,null,null,null,null,null,null,null,null,null,null,null,null,null,null,null,null,null,null,{"$f":"SUM(BA98:BA106)","v":0},{"$f":"SUM(BB98:BB106)","v":0},{"$f":"SUM(BC98:BC106)","v":0},{"$f":"SUM(BD98:BD106)","v":0},{"$f":"SUM(BE98:BE106)","v":0}]
["Díl:","8","Trubní vedení",null,null,null,null,null,null,null,null,null,null,null,1]
[29,"871161121R00","Montáž trubek polyetylenových ve výkopu d 32 mm ","m",5,null,{"$f":"E109*F109","v":0},0,{"$f":"E109*H109","v":0},0,{"$f":"E109*J109","v":0},null,null,null,2,null,null,null,null,null,null,null,null,null,null,null,1,1,1,null,null,null,null,null,null,null,null,null,null,null,null,null,null,null,null,null,null,null,null,null,null,1,{"$f":"IF(AZ109=1,G109,0)","v":0},{"$f":"IF(AZ109=2,G109,0)","v":0},{"$f":"IF(AZ109=3,G109,0)","v":0},{"$f":"IF(AZ109=4,G109,0)","v":0},{"$f":"IF(AZ109=5,G109,0)","v":0},null,null,null,null,null,null,null,null,null,null,null,null,null,null,null,null,null,null,null,null,null,1,1]
[null,null,"V položce je uvažováno použití svitku. ",null,null,null,null,null,null,null,null,"V položce je uvažováno použití svitku. ",null,null,3]
[null,null,"Vodovodní přípojka PE D 32x3,0 mm:5,00",null,5,null,null,null,null,null,null,null,"Vodovodní přípojka PE D 32x3,0 mm:5,00"]
[30,"891269111R00","Montáž navrtávacích pasů DN 100 ","kus",1,null,{"$f":"E112*F112","v":0},0,{"$f":"E112*H112","v":0},0,{"$f":"E112*J112","v":0},null,null,null,2,null,null,null,null,null,null,null,null,null,null,null,1,1,1,null,null,null,null,null,null,null,null,null,null,null,null,null,null,null,null,null,null,null,null,null,null,1,{"$f":"IF(AZ112=1,G112,0)","v":0},{"$f":"IF(AZ112=2,G112,0)","v":0},{"$f":"IF(AZ112=3,G112,0)","v":0},{"$f":"IF(AZ112=4,G112,0)","v":0},{"$f":"IF(AZ112=5,G112,0)","v":0},null,null,null,null,null,null,null,null,null,null,null,null,null,null,null,null,null,null,null,null,null,1,1]
[null,null,"Položka je určena pro montáž navrtávacích pasů s ventilem Jt 1 MPa na potrubí z trub osinkocementových, litinových, ocelových nebo plastckých hmot.",null,null,null,null,null,null,null,null,"Položka je určena pro montáž navrtávacích pasů s ventilem Jt 1 MPa na potrubí z trub osinkocementových, litinových, ocelových nebo plastckých hmot.",null,null,3]
[null,null,"V položce jsou zakalkulovány i náklady na jejich montáž a výkop montážních jamek; na opravu izolace ocelových trubek a na osazení zemních souprav.",null,null,null,null,null,null,null,null,"V položce jsou zakalkulovány i náklady na jejich montáž a výkop montážních jamek; na opravu izolace ocelových trubek a na osazení zemních souprav.",null,null,3]
[null,null,"Vodovodní přípojka PE D 32x3,0 mm:",null,0,null,null,null,null,null,null,null,"Vodovodní přípojka PE D 32x3,0 mm:"]
[null,null,"NP DN100/1\":1",null,1,null,null,null,null,null,null,null,"NP DN100/1\":1"]
[31,"892233111R00","Desinfekce vodovodního potrubí DN 70 ","m",5,null,{"$f":"E117*F117","v":0},0,{"$f":"E117*H117","v":0},0,{"$f":"E117*J117","v":0},null,null,null,2,null,null,null,null,null,null,null,null,null,null,null,1,1,1,null,null,null,null,null,null,null,null,null,null,null,null,null,null,null,null,null,null,null,null,null,null,1,{"$f":"IF(AZ117=1,G117,0)","v":0},{"$f":"IF(AZ117=2,G117,0)","v":0},{"$f":"IF(AZ117=3,G117,0)","v":0},{"$f":"IF(AZ117=4,G117,0)","v":0},{"$f":"IF(AZ117=5,G117,0)","v":0},null,null,null,null,null,null,null,null,null,null,null,null,null,null,null,null,null,null,null,null,null,1,1]
[null,null,"V položce jsou zakalkulovány náklady na napuštění a vypuštění vody, dodání vody a desinfekčního prostředku a na bakteriologický rozbor vody.",null,null,null,null,null,null,null,null,"V položce jsou zakalkulovány náklady na napuštění a vypuštění vody, dodání vody a desinfekčního prostředku a na bakteriologický rozbor vody.",null,null,3]
[null,null,"Vodovodní přípojka PE D 32x3,0 mm:5,00",null,5,null,null,null,null,null,null,null,"Vodovodní přípojka PE D 32x3,0 mm:5,00"]
[32,"892241111R00","Tlaková zkouška vodovodního potrubí DN 80 včetně zajištění konců potrubí","m",5,null,{"$f":"E120*F120","v":0},0,{"$f":"E120*H120","v":0},0,{"$f":"E120*J120","v":0},null,null,null,2,null,null,null,null,null,null,null,null,null,null,null,1,1,1,null,null,null,null,null,null,null,null,null,null,null,null,null,null,null,null,null,null,null,null,null,null,1,{"$f":"IF(AZ120=1,G120,0)","v":0},{"$f":"IF(AZ120=2,G120,0)","v":0},{"$f":"IF(AZ120=3,G120,0)","v":0},{"$f":"IF(AZ120=4,G120,0)","v":0},{"$f":"IF(AZ120=5,G120,0)","v":0},null,null,null,null,null,null,null,null,null,null,null,null,null,null,null,null,null,null,null,null,null,1,1]
[null,null,"V položce jsou započteny náklady na přísun, montáž, demontáž a odsun zkoušecího čerpadla, napuštění tlakovou vodou a dodání vody pro tlakovou zkoušku.",null,null,null,null,null,null,null,null,"V položce jsou započteny náklady na přísun, montáž, demontáž a odsun zkoušecího čerpadla, napuštění tlakovou vodou a dodání vody pro tlakovou zkoušku.",null,null,3]
[null,null,"Vodovodní přípojka PE D 32x3,0 mm:5,00",null,5,null,null,null,null,null,null,null,"Vodovodní přípojka PE D 32x3,0 mm:5,00"]
[33,"893411011RRX","Šachta vodoměrná dle PD průměr D1200 včetně poklopu","kus",1,null,{"$f":"E123*F123","v":0},5.13,{"$f":"E123*H123","v":5.13},0,{"$f":"E123*J123","v":0},null,null,null,2,null,null,null,null,null,null,null,null,null,null,null,1,1,1,null,null,null,null,null,null,null,null,null,null,null,null,null,null,null,null,null,null,null,null,null,null,1,{"$f":"IF(AZ123=1,G123,0)","v":0},{"$f":"IF(AZ123=2,G123,0)","v":0},{"$f":"IF(AZ123=3,G123,0)","v":0},{"$f":"IF(AZ123=4,G123,0)","v":0},{"$f":"IF(AZ123=5,G123,0)","v":0},null,null,null,null,null,null,null,null,null,null,null,null,null,null,null,null,null,null,null,null,null,1,1]
[null,null,"Součástí položky je:",null,null,null,null,null,null,null,null,"Součástí položky je:",null,null,3]
[null,null,"- dodávka a montáž vodoměrné plastové šachty D 1200 mm a výška 1200 mm včetně vstupního komínku výšky 300 mm. Soušástí VŠ je i vstupní plastový žebřík.",null,null,null,null,null,null,null,null,"- dodávka a montáž vodoměrné plastové šachty D 1200 mm a výška 1200 mm včetně vstupního komínku výšky 300 mm. Soušástí VŠ je i vstupní plastový žebřík.",null,null,3]
[null,null,"- dodávka a montáž plastového poklopu DN600 ",null,null,null,null,null,null,null,null,"- dodávka a montáž plastového poklopu DN600 ",null,null,3]
[null,null,"Provedení dle PD",null,null,null,null,null,null,null,null,"Provedení dle PD",null,null,3]
[null,null,"Vodovodní přípojka PE D 32x3,0 mm:",null,0,null,null,null,null,null,null,null,"Vodovodní přípojka PE D 32x3,0 mm:"]
[null,null,"Vodoměrná šachta:1",null,1,null,null,null,null,null,null,null,"Vodoměrná šachta:1"]
[34,"899000001RA0","D+M - Vodoměrná sestava D 32 dle PD ","soubor",1,null,{"$f":"E130*F130","v":0},0,{"$f":"E130*H130","v":0},0,{"$f":"E130*J130","v":0},null,null,null,2,null,null,null,null,null,null,null,null,null,null,null,1,1,1,null,null,null,null,null,null,null,null,null,null,null,null,null,null,null,null,null,null,null,null,null,null,1,{"$f":"IF(AZ130=1,G130,0)","v":0},{"$f":"IF(AZ130=2,G130,0)","v":0},{"$f":"IF(AZ130=3,G130,0)","v":0},{"$f":"IF(AZ130=4,G130,0)","v":0},{"$f":"IF(AZ130=5,G130,0)","v":0},null,null,null,null,null,null,null,null,null,null,null,null,null,null,null,null,null,null,null,null,null,1,1]
[null,null,"Provedení dle standartů VHS Turnov a provozovatele.",null,null,null,null,null,null,null,null,"Provedení dle standartů VHS Turnov a provozovatele.",null,null,3]
[null,null,"Vodovodní přípojka PE D 32x3,0 mm:",null,0,null,null,null,null,null,null,null,"Vodovodní přípojka PE D 32x3,0 mm:"]
[null,null,"Vodoměrná sestava umístěná ve VŠ:1",null,1,null,null,null,null,null,null,null,"Vodoměrná sestava umístěná ve VŠ:1"]
[35,"899401111R00","Osazení poklopů litinových ventilových ","kus",1,null,{"$f":"E134*F134","v":0},6.3829999999999998E-2,{"$f":"E134*H134","v":6.3829999999999998E-2},0,{"$f":"E134*J134","v":0},null,null,null,2,null,null,null,null,null,null,null,null,null,null,null,1,1,1,null,null,null,null,null,null,null,null,null,null,null,null,null,null,null,null,null,null,null,null,null,null,1,{"$f":"IF(AZ134=1,G134,0)","v":0},{"$f":"IF(AZ134=2,G134,0)","v":0},{"$f":"IF(AZ134=3,G134,0)","v":0},{"$f":"IF(AZ134=4,G134,0)","v":0},{"$f":"IF(AZ134=5,G134,0)","v":0},null,null,null,null,null,null,null,null,null,null,null,null,null,null,null,null,null,null,null,null,null,1,1]
[null,null,"Vodovodní přípojka PE D 32x3,0 mm:1",null,1,null,null,null,null,null,null,null,"Vodovodní přípojka PE D 32x3,0 mm:1"]
[36,"899713111RRX","Orientační tabulky na sloupku ocelovém, betonovém ","kus",1,null,{"$f":"E136*F136","v":0},2.4000000000000001E-4,{"$f":"E136*H136","v":2.4000000000000001E-4},0,{"$f":"E136*J136","v":0},null,null,null,2,null,null,null,null,null,null,null,null,null,null,null,1,1,1,null,null,null,null,null,null,null,null,null,null,null,null,null,null,null,null,null,null,null,null,null,null,1,{"$f":"IF(AZ136=1,G136,0)","v":0},{"$f":"IF(AZ136=2,G136,0)","v":0},{"$f":"IF(AZ136=3,G136,0)","v":0},{"$f":"IF(AZ136=4,G136,0)","v":0},{"$f":"IF(AZ136=5,G136,0)","v":0},null,null,null,null,null,null,null,null,null,null,null,null,null,null,null,null,null,null,null,null,null,1,1]
[null,null,"Položka platí pro orientační tabulky na vodovodních a kanalizačních řadech. V položce jsou zakalkulovány náklady na dodání a připevnění tabulky a na osazení sloupku. V položce jsou zakalkulovány náklady na zemní práce a na dodání sloupků (betonových nebo ocelových s betonovými patkami)",null,null,null,null,null,null,null,null,"Položka platí pro orientační tabulky na vodovodních a kanalizačních řadech. V položce jsou zakalkulovány náklady na dodání a připevnění tabulky a na osazení sloupku. V položce jsou zakalkulovány náklady na zemní práce a na dodání sloupků (betonových nebo ocelových s betonovými patkami)",null,null,3]
[null,null,"Vodovodní přípojka PE D 32x3,0 mm:1",null,1,null,null,null,null,null,null,null,"Vodovodní přípojka PE D 32x3,0 mm:1"]
[37,"899721112R00","Fólie výstražná z PVC bílá, šířka 30 cm ","m",5,null,{"$f":"E139*F139","v":0},0,{"$f":"E139*H139","v":0},0,{"$f":"E139*J139","v":0},null,null,null,2,null,null,null,null,null,null,null,null,null,null,null,1,1,1,null,null,null,null,null,null,null,null,null,null,null,null,null,null,null,null,null,null,null,null,null,null,1,{"$f":"IF(AZ139=1,G139,0)","v":0},{"$f":"IF(AZ139=2,G139,0)","v":0},{"$f":"IF(AZ139=3,G139,0)","v":0},{"$f":"IF(AZ139=4,G139,0)","v":0},{"$f":"IF(AZ139=5,G139,0)","v":0},null,null,null,null,null,null,null,null,null,null,null,null,null,null,null,null,null,null,null,null,null,1,1]
[null,null,"Vodovodní přípojka PE D 32x3,0 mm:5,00",null,5,null,null,null,null,null,null,null,"Vodovodní přípojka PE D 32x3,0 mm:5,00"]
[38,"899731114R00","Vodič signalizační CYY 6 mm2 ","m",9,null,{"$f":"E141*F141","v":0},8.0000000000000007E-5,{"$f":"E141*H141","v":7.2000000000000005E-4},0,{"$f":"E141*J141","v":0},null,null,null,2,null,null,null,null,null,null,null,null,null,null,null,1,1,1,null,null,null,null,null,null,null,null,null,null,null,null,null,null,null,null,null,null,null,null,null,null,1,{"$f":"IF(AZ141=1,G141,0)","v":0},{"$f":"IF(AZ141=2,G141,0)","v":0},{"$f":"IF(AZ141=3,G141,0)","v":0},{"$f":"IF(AZ141=4,G141,0)","v":0},{"$f":"IF(AZ141=5,G141,0)","v":0},null,null,null,null,null,null,null,null,null,null,null,null,null,null,null,null,null,null,null,null,null,1,1]
[null,null,"Součástí položky je zajištění proměření vodiče a výchozí zevize.",null,null,null,null,null,null,null,null,"Součástí položky je zajištění proměření vodiče a výchozí zevize.",null,null,3]
[null,null,"Vodovodní přípojka PE D 32x3,0 mm:5,00",null,5,null,null,null,null,null,null,null,"Vodovodní přípojka PE D 32x3,0 mm:5,00"]
[null,null,"Vyvedení pro ZŠ:2,00*2*1",null,4,null,null,null,null,null,null,null,"Vyvedení pro ZŠ:2,00*2*1"]
[39,"42201650.R","Poklop uliční ventilový 1650  - voda","kus",1,null,{"$f":"E145*F145","v":0},1.1299999999999999E-2,{"$f":"E145*H145","v":1.1299999999999999E-2},null,{"$f":"E145*J145","v":0},null,null,null,2,null,null,null,null,null,null,null,null,null,null,null,3,1,"42201650.R",null,null,null,null,null,null,null,null,null,null,null,null,null,null,null,null,null,null,null,null,null,null,1,{"$f":"IF(AZ145=1,G145,0)","v":0},{"$f":"IF(AZ145=2,G145,0)","v":0},{"$f":"IF(AZ145=3,G145,0)","v":0},{"$f":"IF(AZ145=4,G145,0)","v":0},{"$f":"IF(AZ145=5,G145,0)","v":0},null,null,null,null,null,null,null,null,null,null,null,null,null,null,null,null,null,null,null,null,null,3,1]
[null,null,"Vodovodní přípojka PE D 32x3,0 mm:1",null,1,null,null,null,null,null,null,null,"Vodovodní přípojka PE D 32x3,0 mm:1"]
[40,"42202800.02.R","Šoupátko domovní č.2800  32-5/4\"","kus",1,null,{"$f":"E147*F147","v":0},5.1999999999999998E-3,{"$f":"E147*H147","v":5.1999999999999998E-3},null,{"$f":"E147*J147","v":0},null,null,null,2,null,null,null,null,null,null,null,null,null,null,null,3,1,"42202800.02.R",null,null,null,null,null,null,null,null,null,null,null,null,null,null,null,null,null,null,null,null,null,null,1,{"$f":"IF(AZ147=1,G147,0)","v":0},{"$f":"IF(AZ147=2,G147,0)","v":0},{"$f":"IF(AZ147=3,G147,0)","v":0},{"$f":"IF(AZ147=4,G147,0)","v":0},{"$f":"IF(AZ147=5,G147,0)","v":0},null,null,null,null,null,null,null,null,null,null,null,null,null,null,null,null,null,null,null,null,null,3,1]
[null,null,"Vodovodní přípojka PE D 32x3,0 mm:",null,0,null,null,null,null,null,null,null,"Vodovodní přípojka PE D 32x3,0 mm:"]
[null,null,"Šoupátko ISO domovní přípojky 32 - 5/4\":1",null,1,null,null,null,null,null,null,null,"Šoupátko ISO domovní přípojky 32 - 5/4\":1"]
[41,"42203370.08.R","Pás navrtávací Hacom č.3370 DN 100/1\"","kus",1,null,{"$f":"E150*F150","v":0},8.8000000000000005E-3,{"$f":"E150*H150","v":8.8000000000000005E-3},null,{"$f":"E150*J150","v":0},null,null,null,2,null,null,null,null,null,null,null,null,null,null,null,3,1,"42203370.08.R",null,null,null,null,null,null,null,null,null,null,null,null,null,null,null,null,null,null,null,null,null,null,1,{"$f":"IF(AZ150=1,G150,0)","v":0},{"$f":"IF(AZ150=2,G150,0)","v":0},{"$f":"IF(AZ150=3,G150,0)","v":0},{"$f":"IF(AZ150=4,G150,0)","v":0},{"$f":"IF(AZ150=5,G150,0)","v":0},null,null,null,null,null,null,null,null,null,null,null,null,null,null,null,null,null,null,null,null,null,3,1]
[null,null,"Vodovodní přípojka PE D 32x3,0 mm:",null,0,null,null,null,null,null,null,null,"Vodovodní přípojka PE D 32x3,0 mm:"]
[null,null,"NP DN100/1\":1",null,1,null,null,null,null,null,null,null,"NP DN100/1\":1"]
[42,"42203481.R","Podkladová deska č. 3481","kus",1,null,{"$f":"E153*F153","v":0},5.9999999999999995E-4,{"$f":"E153*H153","v":5.9999999999999995E-4},null,{"$f":"E153*J153","v":0},null,null,null,2,null,null,null,null,null,null,null,null,null,null,null,3,1,"42203481.R",null,null,null,null,null,null,null,null,null,null,null,null,null,null,null,null,null,null,null,null,null,null,1,{"$f":"IF(AZ153=1,G153,0)","v":0},{"$f":"IF(AZ153=2,G153,0)","v":0},{"$f":"IF(AZ153=3,G153,0)","v":0},{"$f":"IF(AZ153=4,G153,0)","v":0},{"$f":"IF(AZ153=5,G153,0)","v":0},null,null,null,null,null,null,null,null,null,null,null,null,null,null,null,null,null,null,null,null,null,3,1]
[null,null,"Vodovodní přípojka PE D 32x3,0 mm:1",null,1,null,null,null,null,null,null,null,"Vodovodní přípojka PE D 32x3,0 mm:1"]
[43,"42209601.R","Zemní souprava tel. (1,3 - 1,8 m) č.9601 3/4-2\"","kus",1,null,{"$f":"E155*F155","v":0},2.5000000000000001E-3,{"$f":"E155*H155","v":2.5000000000000001E-3},null,{"$f":"E155*J155","v":0},null,null,null,2,null,null,null,null,null,null,null,null,null,null,null,3,1,"42209601.R",null,null,null,null,null,null,null,null,null,null,null,null,null,null,null,null,null,null,null,null,null,null,1,{"$f":"IF(AZ155=1,G155,0)","v":0},{"$f":"IF(AZ155=2,G155,0)","v":0},{"$f":"IF(AZ155=3,G155,0)","v":0},{"$f":"IF(AZ155=4,G155,0)","v":0},{"$f":"IF(AZ155=5,G155,0)","v":0},null,null,null,null,null,null,null,null,null,null,null,null,null,null,null,null,null,null,null,null,null,3,1]
[null,null,"Vodovodní přípojka PE D 32x3,0 mm:",null,0,null,null,null,null,null,null,null,"Vodovodní přípojka PE D 32x3,0 mm:"]
[null,null,"Pro NP DN100/1\":1",null,1,null,null,null,null,null,null,null,"Pro NP DN100/1\":1"]
[null,"Celkem za","8 Trubní vedení",null,null,null,{"$f":"SUM(G108:G157)","v":0},null,{"$f":"SUM(I108:I157)","v":5.2231900000000016},null,{"$f":"SUM(K108:K157)","v":0},null,null,null,4,null,null,null,null,null,null,null,null,null,null,null,null,null,null,null,null,null,null,null,null,null,null,null,null,null,null,null,null,null,null,null,null,null,null,null,null,null,{"$f":"SUM(BA108:BA157)","v":0},{"$f":"SUM(BB108:BB157)","v":0},{"$f":"SUM(BC108:BC157)","v":0},{"$f":"SUM(BD108:BD157)","v":0},{"$f":"SUM(BE108:BE157)","v":0}]
["Díl:","99","Staveništní přesun hmot",null,null,null,null,null,null,null,null,null,null,null,1]
[44,"998276101R00","Přesun hmot, trubní vedení plastová, otevř. výkop ","t",15.259086,null,{"$f":"E160*F160","v":0},0,{"$f":"E160*H160","v":0},null,{"$f":"E160*J160","v":0},null,null,null,2,null,null,null,null,null,null,null,null,null,null,null,7,1,2,null,null,null,null,null,null,null,null,null,null,null,null,null,null,null,null,null,null,null,null,null,null,1,{"$f":"IF(AZ160=1,G160,0)","v":0},{"$f":"IF(AZ160=2,G160,0)","v":0},{"$f":"IF(AZ160=3,G160,0)","v":0},{"$f":"IF(AZ160=4,G160,0)","v":0},{"$f":"IF(AZ160=5,G160,0)","v":0},null,null,null,null,null,null,null,null,null,null,null,null,null,null,null,null,null,null,null,null,null,7,1]
[null,"Celkem za","99 Staveništní přesun hmot",null,null,null,{"$f":"SUM(G159:G160)","v":0},null,{"$f":"SUM(I159:I160)","v":0},null,{"$f":"SUM(K159:K160)","v":0},null,null,null,4,null,null,null,null,null,null,null,null,null,null,null,null,null,null,null,null,null,null,null,null,null,null,null,null,null,null,null,null,null,null,null,null,null,null,null,null,null,{"$f":"SUM(BA159:BA160)","v":0},{"$f":"SUM(BB159:BB160)","v":0},{"$f":"SUM(BC159:BC160)","v":0},{"$f":"SUM(BD159:BD160)","v":0},{"$f":"SUM(BE159:BE160)","v":0}]

{"sheet":"320 3357320 KL","index":4,"n_rows":45,"n_cols":8,"rows_kept":45,"cut":false,"hidden":false,"merged":[[22,0,22,1],[7,2,7,4],[8,2,8,4],[9,2,9,4],[10,2,10,4],[11,2,11,4],[50,1,50,6],[29,5,29,6],[30,5,30,6],[31,5,31,6],[32,5,32,6],[33,5,33,6],[36,1,44,6],[45,1,45,6],[46,1,46,6],[47,1,47,6],[48,1,48,6],[49,1,49,6]]}
["POLOŽKOVÝ ROZPOČET"]
["Rozpočet",null,"3357/320","Kanalizační přípojka",null,"JKSO ","827.29"]
[]
["Objekt",null,null,null,null,"SKP "]
["320",null,"Kanalizační přípojka",null,null,"Měrná jednotka","m"]
["Stavba",null,null,null,null,"Počet jednotek",5]
["3357",null,"Přípojky pro p.p.č. 1005/8 v k.ú. Turnov",null,null,"Náklady na m.j.",{"$f":"IF(G6=0,,ROUND((F30+F32)/G6,1))","v":0}]
["Projektant",null,"JENA-CZ s.r.o.",null,null,"Typ rozpočtu"]
["Zpracovatel projektu"]
["Objednatel",null,"Město TURNOV"]
["Dodavatel",null,".",null,null,"Zakázkové číslo "]
["Rozpočtoval",null,null,null,null,"Počet listů"]
["ROZPOČTOVÉ NÁKLADY"]
["Základní rozpočtové náklady",null,null,"Ostatní rozpočtové náklady"]
[null,"HSV celkem",{"$f":"'320 3357320 Rek'!E12","v":0},{"$f":"'320 3357320 Rek'!A17","v":"Zařízení staveniště"},null,null,{"$f":"'320 3357320 Rek'!I17","v":0}]
["Z","PSV celkem",{"$f":"'320 3357320 Rek'!F12","v":0},{"$f":"'320 3357320 Rek'!A18","v":"Kompletační činnost (IČD)"},null,null,{"$f":"'320 3357320 Rek'!I18","v":0}]
["R","M práce celkem",{"$f":"'320 3357320 Rek'!H12","v":0},{"$f":"'320 3357320 Rek'!A19","v":"Vytýčení stavby a podz. inženýrských sítí"},null,null,{"$f":"'320 3357320 Rek'!I19","v":0}]
["N","M dodávky celkem",{"$f":"'320 3357320 Rek'!G12","v":0},{"$f":"'320 3357320 Rek'!A20","v":"Dokumentace skutečného provedení"},null,null,{"$f":"'320 3357320 Rek'!I20","v":0}]
["ZRN celkem",null,{"$f":"SUM(C15:C18)","v":0},{"$f":"'320 3357320 Rek'!A21","v":"Geodetické zaměření stavby"},null,null,{"$f":"'320 3357320 Rek'!I21","v":0}]
[null,null,null,{"$f":"'320 3357320 Rek'!A22","v":"DIO"},null,null,{"$f":"'320 3357320 Rek'!I22","v":0}]
["HZS",null,{"$f":"'320 3357320 Rek'!I12","v":0}]
["ZRN+HZS",null,{"$f":"C19+C21","v":0}]
["ZRN+ost.náklady+HZS",null,{"$f":"C22+G23","v":0},"Ostatní náklady celkem",null,null,{"$f":"'320 3357320 Rek'!H23","v":0}]
["Vypracoval",null,null,"Za zhotovitele",null,"Za objednatele"]
["Jméno :",null,null,"Jméno :",null,"Jméno :"]
["Datum :",null,null,"Datum :",null,"Datum :"]
[]
["Podpis :",null,null,"Podpis:",null,"Podpis:"]
[]
["Základ pro DPH",null,21,"%  ",null,{"$f":"C23-F32","v":0}]
["DPH",null,{"$f":"C30","v":21},"% ",null,{"$f":"ROUND(PRODUCT(F30,C31/100),0)","v":0}]
["Základ pro DPH",null,0,"% ",null,0]
["DPH",null,{"$f":"C32","v":0},"% ",null,{"$f":"ROUND(PRODUCT(F32,C33/100),0)","v":0}]
["CENA ZA OBJEKT CELKEM",null,null,null,null,{"$f":"ROUND(SUM(F30:F33),0)","v":0}]
[]
["Poznámka :",null,null,null,null,null,null," "]
[null,null,null,null,null,null,null," "]
[null,null,null,null,null,null,null," "]
[null,null,null,null,null,null,null," "]
[null,null,null,null,null,null,null," "]
[null,null,null,null,null,null,null," "]
[null,null,null,null,null,null,null," "]
[null,null,null,null,null,null,null," "]
[null,null,null,null,null,null,null," "]
[null,null,null,null,null,null,null," "]

{"sheet":"320 3357320 Rek","index":5,"n_rows":23,"n_cols":53,"rows_kept":23,"cut":false,"hidden":false,"merged":[[0,0,0,1],[1,0,1,1],[1,6,1,8],[22,7,22,8]]}
["Stavba :",null,"3357 Přípojky pro p.p.č. 1005/8 v k.ú. Turnov",null,null,null,"Rozpočet :","3357/320"]
["Objekt :",null,"320 Kanalizační přípojka",null,null,null,"Kanalizační přípojka"]
[]
["REKAPITULACE  STAVEBNÍCH  DÍLŮ"]
[]
[null,"Stavební díl",null,null,"HSV","PSV","Dodávka","Montáž","HZS"]
[{"$f":"'320 3357320 Pol'!B7","v":"1"},{"$f":"'320 3357320 Pol'!C7","v":"Zemní práce"},null,null,{"$f":"'320 3357320 Pol'!BA108","v":0},{"$f":"'320 3357320 Pol'!BB108","v":0},{"$f":"'320 3357320 Pol'!BC108","v":0},{"$f":"'320 3357320 Pol'!BD108","v":0},{"$f":"'320 3357320 Pol'!BE108","v":0}]
[{"$f":"'320 3357320 Pol'!B109","v":"45"},{"$f":"'320 3357320 Pol'!C109","v":"Podkladní a vedlejší konstrukce"},null,null,{"$f":"'320 3357320 Pol'!BA113","v":0},{"$f":"'320 3357320 Pol'!BB113","v":0},{"$f":"'320 3357320 Pol'!BC113","v":0},{"$f":"'320 3357320 Pol'!BD113","v":0},{"$f":"'320 3357320 Pol'!BE113","v":0}]
[{"$f":"'320 3357320 Pol'!B114","v":"5"},{"$f":"'320 3357320 Pol'!C114","v":"Komunikace"},null,null,{"$f":"'320 3357320 Pol'!BA127","v":0},{"$f":"'320 3357320 Pol'!BB127","v":0},{"$f":"'320 3357320 Pol'!BC127","v":0},{"$f":"'320 3357320 Pol'!BD127","v":0},{"$f":"'320 3357320 Pol'!BE127","v":0}]
[{"$f":"'320 3357320 Pol'!B128","v":"8"},{"$f":"'320 3357320 Pol'!C128","v":"Trubní vedení"},null,null,{"$f":"'320 3357320 Pol'!BA154","v":0},{"$f":"'320 3357320 Pol'!BB154","v":0},{"$f":"'320 3357320 Pol'!BC154","v":0},{"$f":"'320 3357320 Pol'!BD154","v":0},{"$f":"'320 3357320 Pol'!BE154","v":0}]
[{"$f":"'320 3357320 Pol'!B155","v":"99"},{"$f":"'320 3357320 Pol'!C155","v":"Staveništní přesun hmot"},null,null,{"$f":"'320 3357320 Pol'!BA157","v":0},{"$f":"'320 3357320 Pol'!BB157","v":0},{"$f":"'320 3357320 Pol'!BC157","v":0},{"$f":"'320 3357320 Pol'!BD157","v":0},{"$f":"'320 3357320 Pol'!BE157","v":0}]
[null,"CELKEM  OBJEKT",null,null,{"$f":"SUM(E7:E11)","v":0},{"$f":"SUM(F7:F11)","v":0},{"$f":"SUM(G7:G11)","v":0},{"$f":"SUM(H7:H11)","v":0},{"$f":"SUM(I7:I11)","v":0}]
[]
["VEDLEJŠÍ ROZPOČTOVÉ  NÁKLADY"]
[]
["Název VRN",null,null,null,"Kč",null,null,null,"Kč"]
["Zařízení staveniště",null,null,null,0,null,null,null,{"$f":"E17+F17*G17/100","v":0},null,null,null,null,null,null,null,null,null,null,null,null,null,null,null,null,null,null,null,null,null,null,null,null,null,null,null,null,null,null,null,null,null,null,null,null,null,null,null,null,null,null,null,2]
["Kompletační činnost (IČD)",null,null,null,0,null,null,null,0,null,null,null,null,null,null,null,null,null,null,null,null,null,null,null,null,null,null,null,null,null,null,null,null,null,null,null,null,null,null,null,null,null,null,null,null,null,null,null,null,null,null,null,2]
["Vytýčení stavby a podz. inženýrských sítí",null,null,null,0,null,null,null,0,null,null,null,null,null,null,null,null,null,null,null,null,null,null,null,null,null,null,null,null,null,null,null,null,null,null,null,null,null,null,null,null,null,null,null,null,null,null,null,null,null,null,null,0]
["Dokumentace skutečného provedení",null,null,null,0,null,null,null,0,null,null,null,null,null,null,null,null,null,null,null,null,null,null,null,null,null,null,null,null,null,null,null,null,null,null,null,null,null,null,null,null,null,null,null,null,null,null,null,null,null,null,null,0]
["Geodetické zaměření stavby",null,null,null,0,null,null,null,0,null,null,null,null,null,null,null,null,null,null,null,null,null,null,null,null,null,null,null,null,null,null,null,null,null,null,null,null,null,null,null,null,null,null,null,null,null,null,null,null,null,null,null,0]
["DIO",null,null,null,0,null,null,null,0,null,null,null,null,null,null,null,null,null,null,null,null,null,null,null,null,null,null,null,null,null,null,null,null,null,null,null,null,null,null,null,null,null,null,null,null,null,null,null,null,null,null,null,0]
[null,"CELKEM VRN",null,null,null,null,null,{"$f":"SUM(I17:I22)","v":0}]

{"sheet":"320 3357320 Pol","index":6,"n_rows":157,"n_cols":80,"rows_kept":157,"cut":false,"hidden":false,"merged":[[14,2,14,3],[15,2,15,3],[17,2,17,3],[18,2,18,3],[19,2,19,3],[21,2,21,3],[0,0,0,6],[2,0,2,1],[3,0,3,1],[3,4,3,6],[8,2,8,3],[9,2,9,3],[11,2,11,3],[12,2,12,3],[30,2,30,3],[31,2,31,3],[32,2,32,3],[33,2,33,3],[34,2,34,3],[36,2,36,6],[22,2,22,3],[23,2,23,3],[25,2,25,3],[27,2,27,6],[28,2,28,3],[29,2,29,3],[44,2,44,3],[45,2,45,3],[47,2,47,3],[48,2,48,3],[50,2,50,3],[51,2,51,3],[37,2,37,3],[38,2,38,3],[39,2,39,3],[40,2,40,3],[42,2,42,3],[43,2,43,3],[60,2,60,6],[61,2,61,6],[62,2,62,3],[63,2,63,3],[64,2,64,3],[65,2,65,3],[53,2,53,3],[54,2,54,3],[55,2,55,3],[56,2,56,3],[57,2,57,3],[58,2,58,3],[72,2,72,3],[73,2,73,3],[74,2,74,3],[76,2,76,3],[77,2,77,3],[79,2,79,3],[66,2,66,3],[67,2,67,3],[68,2,68,3],[69,2,69,3],[70,2,70,3],[71,2,71,3],[87,2,87,3],[89,2,89,3],[90,2,90,3],[95,2,95,6],[97,2,97,3],[98,2,98,3],[80,2,80,3],[81,2,81,3],[82,2,82,3],[83,2,83,3],[84,2,84,3],[86,2,86,3],[106,2,106,3],[110,2,110,3],[111,2,111,3],[100,2,100,3],[101,2,101,3],[102,2,102,3],[103,2,103,3],[104,2,104,3],[105,2,105,3],[129,2,129,6],[130,2,130,3],[132,2,132,6],[133,2,133,6],[134,2,134,3],[135,2,135,3],[137,2,137,6],[138,2,138,6],[115,2,115,3],[116,2,116,3],[118,2,118,3],[119,2,119,3],[121,2,121,3],[122,2,122,3],[124,2,124,3],[125,2,125,3],[148,2,148,6],[149,2,149,6],[150,2,150,6],[151,2,151,6],[152,2,152,3],[139,2,139,6],[140,2,140,6],[142,2,142,6],[144,2,144,6],[146,2,146,6],[147,2,147,6]]}
["Položkový rozpočet "]
[]
["Stavba :",null,"3357 Přípojky pro p.p.č. 1005/8 v k.ú. Turnov",null,"Rozpočet:",{"$f":"'320 3357320 Rek'!H1","v":"3357/320"}]
["Objekt :",null,"320 Kanalizační přípojka",null,{"$f":"'320 3357320 Rek'!G2","v":"Kanalizační přípojka"}]
[]
["P.č.","Číslo položky","Název položky","MJ","množství","cena / MJ","celkem (Kč)","Jednotková hmotnost","Celková hmotnost","Jednotková dem.hmot.","Celková dem.hmot."]
["Díl:","1","Zemní práce",null,null,null,null,null,null,null,null,null,null,null,1]
[1,"113107520R00","Odstranění podkladu pl. 50 m2,kam.drcené tl.20 cm ","m2",5.6,null,{"$f":"E8*F8","v":0},0,{"$f":"E8*H8","v":0},-0.44,{"$f":"E8*J8","v":-2.464},null,null,null,2,null,null,null,null,null,null,null,null,null,null,null,1,1,1,null,null,null,null,null,null,null,null,null,null,null,null,null,null,null,null,null,null,null,null,null,null,1,{"$f":"IF(AZ8=1,G8,0)","v":0},{"$f":"IF(AZ8=2,G8,0)","v":0},{"$f":"IF(AZ8=3,G8,0)","v":0},{"$f":"IF(AZ8=4,G8,0)","v":0},{"$f":"IF(AZ8=5,G8,0)","v":0},null,null,null,null,null,null,null,null,null,null,null,null,null,null,null,null,null,null,null,null,null,1,1]
[null,null,"KP PVC DN150:4,00*0,80",null,3.2,null,null,null,null,null,null,null,"KP PVC DN150:4,00*0,80"]
[null,null,"Napojení na stávající stoku DN400:2,00*1,20",null,2.4,null,null,null,null,null,null,null,"Napojení na stávající stoku DN400:2,00*1,20"]
[2,"113108310R00","Odstranění asfaltové vrstvy pl. do 50 m2, tl.10 cm ","m2",5.6,null,{"$f":"E11*F11","v":0},0,{"$f":"E11*H11","v":0},-0.22,{"$f":"E11*J11","v":-1.232},null,null,null,2,null,null,null,null,null,null,null,null,null,null,null,1,1,1,null,null,null,null,null,null,null,null,null,null,null,null,null,null,null,null,null,null,null,null,null,null,1,{"$f":"IF(AZ11=1,G11,0)","v":0},{"$f":"IF(AZ11=2,G11,0)","v":0},{"$f":"IF(AZ11=3,G11,0)","v":0},{"$f":"IF(AZ11=4,G11,0)","v":0},{"$f":"IF(AZ11=5,G11,0)","v":0},null,null,null,null,null,null,null,null,null,null,null,null,null,null,null,null,null,null,null,null,null,1,1]
[null,null,"KP PVC DN150:4,00*0,80",null,3.2,null,null,null,null,null,null,null,"KP PVC DN150:4,00*0,80"]
[null,null,"Napojení na stávající stoku DN400:2,00*1,20",null,2.4,null,null,null,null,null,null,null,"Napojení na stávající stoku DN400:2,00*1,20"]
[3,"113109315R00","Odstranění podkladu pl.50 m2, bet.prostý tl.15 cm ","m2",5.6,null,{"$f":"E14*F14","v":0},0,{"$f":"E14*H14","v":0},-0.36,{"$f":"E14*J14","v":-2.016},null,null,null,2,null,null,null,null,null,null,null,null,null,null,null,1,1,1,null,null,null,null,null,null,null,null,null,null,null,null,null,null,null,null,null,null,null,null,null,null,1,{"$f":"IF(AZ14=1,G14,0)","v":0},{"$f":"IF(AZ14=2,G14,0)","v":0},{"$f":"IF(AZ14=3,G14,0)","v":0},{"$f":"IF(AZ14=4,G14,0)","v":0},{"$f":"IF(AZ14=5,G14,0)","v":0},null,null,null,null,null,null,null,null,null,null,null,null,null,null,null,null,null,null,null,null,null,1,1]
[null,null,"KP PVC DN150:4,00*0,80",null,3.2,null,null,null,null,null,null,null,"KP PVC DN150:4,00*0,80"]
[null,null,"Napojení na stávající stoku DN400:2,00*1,20",null,2.4,null,null,null,null,null,null,null,"Napojení na stávající stoku DN400:2,00*1,20"]
[4,"119001401R00","Dočasné zajištění ocelového potrubí do DN 200 mm ","m",2.4,null,{"$f":"E17*F17","v":0},8.6899999999999998E-3,{"$f":"E17*H17","v":2.0856E-2},0,{"$f":"E17*J17","v":0},null,null,null,2,null,null,null,null,null,null,null,null,null,null,null,1,1,1,null,null,null,null,null,null,null,null,null,null,null,null,null,null,null,null,null,null,null,null,null,null,1,{"$f":"IF(AZ17=1,G17,0)","v":0},{"$f":"IF(AZ17=2,G17,0)","v":0},{"$f":"IF(AZ17=3,G17,0)","v":0},{"$f":"IF(AZ17=4,G17,0)","v":0},{"$f":"IF(AZ17=5,G17,0)","v":0},null,null,null,null,null,null,null,null,null,null,null,null,null,null,null,null,null,null,null,null,null,1,1]
[null,null,"KP PVC DN150:",null,0,null,null,null,null,null,null,null,"KP PVC DN150:"]
[null,null,"Vodovod :0,80*2",null,1.6,null,null,null,null,null,null,null,"Vodovod :0,80*2"]
[null,null,"STL plyn:0,80*1",null,0.8,null,null,null,null,null,null,null,"STL plyn:0,80*1"]
[5,"119001421R00","Dočasné zajištění kabelů - do počtu 3 kabelů ","m",1.6,null,{"$f":"E21*F21","v":0},2.478E-2,{"$f":"E21*H21","v":3.9648000000000003E-2},0,{"$f":"E21*J21","v":0},null,null,null,2,null,null,null,null,null,null,null,null,null,null,null,1,1,1,null,null,null,null,null,null,null,null,null,null,null,null,null,null,null,null,null,null,null,null,null,null,1,{"$f":"IF(AZ21=1,G21,0)","v":0},{"$f":"IF(AZ21=2,G21,0)","v":0},{"$f":"IF(AZ21=3,G21,0)","v":0},{"$f":"IF(AZ21=4,G21,0)","v":0},{"$f":"IF(AZ21=5,G21,0)","v":0},null,null,null,null,null,null,null,null,null,null,null,null,null,null,null,null,null,null,null,null,null,1,1]
[null,null,"KP PVC DN150:",null,0,null,null,null,null,null,null,null,"KP PVC DN150:"]
[null,null,"Vedení NN:0,80*1",null,0.8,null,null,null,null,null,null,null,"Vedení NN:0,80*1"]
[null,null,"Vedení VO:0,80*1",null,0.8,null,null,null,null,null,null,null,"Vedení VO:0,80*1"]
[6,"121100002RAA","Sejmutí ornice a uložení na deponii zpětný přesun, rozprostření v tl. 20 cm","m3",0.45,null,{"$f":"E25*F25","v":0},0,{"$f":"E25*H25","v":0},0,{"$f":"E25*J25","v":0},null,null,null,2,null,null,null,null,null,null,null,null,null,null,null,1,1,1,null,null,null,null,null,null,null,null,null,null,null,null,null,null,null,null,null,null,null,null,null,null,1,{"$f":"IF(AZ25=1,G25,0)","v":0},{"$f":"IF(AZ25=2,G25,0)","v":0},{"$f":"IF(AZ25=3,G25,0)","v":0},{"$f":"IF(AZ25=4,G25,0)","v":0},{"$f":"IF(AZ25=5,G25,0)","v":0},null,null,null,null,null,null,null,null,null,null,null,null,null,null,null,null,null,null,null,null,null,1,1]
[null,null,"KP PVC DN150:1,50*1,50*0,20",null,0.45,null,null,null,null,null,null,null,"KP PVC DN150:1,50*1,50*0,20"]
[7,"130001101RRX","Příplatek za ztížené hloubení v blízkosti vedení ","m3",6.0964999999999998,null,{"$f":"E27*F27","v":0},0,{"$f":"E27*H27","v":0},0,{"$f":"E27*J27","v":0},null,null,null,2,null,null,null,null,null,null,null,null,null,null,null,1,0,0,null,null,null,null,null,null,null,null,null,null,null,null,null,null,null,null,null,null,null,null,null,null,1,{"$f":"IF(AZ27=1,G27,0)","v":0},{"$f":"IF(AZ27=2,G27,0)","v":0},{"$f":"IF(AZ27=3,G27,0)","v":0},{"$f":"IF(AZ27=4,G27,0)","v":0},{"$f":"IF(AZ27=5,G27,0)","v":0},null,null,null,null,null,null,null,null,null,null,null,null,null,null,null,null,null,null,null,null,null,1,0]
[null,null,"Včetně případných nutných dokopávek a ručního výkopu podél sousedících inženýrských sítí a provedení sond před samotnou realizací výkopů.",null,null,null,null,null,null,null,null,"Včetně případných nutných dokopávek a ručního výkopu podél sousedících inženýrských sítí a provedení sond před samotnou realizací výkopů.",null,null,3]
[null,null,"Začátek provozního součtu",null,0,null,null,null,null,null,null,null,"Začátek provozního součtu"]
[null,null,"KP PVC DN150:4,00*0,80*((1,75+1,35)/2-0,45)",null,3.52,null,null,null,null,null,null,null,"KP PVC DN150:4,00*0,80*((1,75+1,35)/2-0,45)"]
[null,null,"1,50*0,80*((1,75+1,35)/2-0,20)",null,1.62,null,null,null,null,null,null,null,"1,50*0,80*((1,75+1,35)/2-0,20)"]
[null,null,"Napojení na stávající stoku DN400:2,00*1,20*(1,80-0,45)",null,3.24,null,null,null,null,null,null,null,"Napojení na stávající stoku DN400:2,00*1,20*(1,80-0,45)"]
[null,null,"Odpočet objemu stávajícího potrubí DN400:-2,00*0,20^2*Pi",null,-0.25130000000000002,null,null,null,null,null,null,null,"Odpočet objemu stávajícího potrubí DN400:-2,00*0,20^2*Pi"]
[null,null,"Konec provozního součtu",null,8.1287000000000003,null,null,null,null,null,null,null,"Konec provozního součtu"]
[null,null,"Příplatek z 75%:8,1287*0,75",null,6.0964999999999998,null,null,null,null,null,null,null,"Příplatek z 75%:8,1287*0,75"]
[8,"132201210R00","Hloubení rýh š.do 200 cm hor.3 do 50 m3,STROJNĚ ","m3",8.1287000000000003,null,{"$f":"E36*F36","v":0},0,{"$f":"E36*H36","v":0},0,{"$f":"E36*J36","v":0},null,null,null,2,null,null,null,null,null,null,null,null,null,null,null,1,1,1,null,null,null,null,null,null,null,null,null,null,null,null,null,null,null,null,null,null,null,null,null,null,1,{"$f":"IF(AZ36=1,G36,0)","v":0},{"$f":"IF(AZ36=2,G36,0)","v":0},{"$f":"IF(AZ36=3,G36,0)","v":0},{"$f":"IF(AZ36=4,G36,0)","v":0},{"$f":"IF(AZ36=5,G36,0)","v":0},null,null,null,null,null,null,null,null,null,null,null,null,null,null,null,null,null,null,null,null,null,1,1]
[null,null,"Položka obsahuje hloubení rýh traktorbagrem, naložení výkopku na dopravní prostředek pro svislé, nebo vodorovné přemístění, popř. přemístění výkopku do 3 m (po povrchu území), případné zajištění rypadel polštáři, udržování pracoviště a ochranu výkopiště proti stékání srážkové vody z okolního terénu i s jejím odvodněním, nebo odvedením, přesekání a odstranění kořenů ve výkopišti, odstranění napadávek, urovnání dna výkopu.",null,null,null,null,null,null,null,null,"Položka obsahuje hloubení rýh traktorbagrem, naložení výkopku na dopravní prostředek pro svislé, nebo vodorovné přemístění, popř. přemístění výkopku do 3 m (po povrchu území), případné zajištění rypadel polštáři, udržování pracoviště a ochranu výkopiště proti stékání srážkové vody z okolního terénu i s jejím odvodněním, nebo odvedením, přesekání a odstranění kořenů ve výkopišti, odstranění napadávek, urovnání dna výkopu.",null,null,3]
[null,null,"KP PVC DN150:4,00*0,80*((1,75+1,35)/2-0,45)",null,3.52,null,null,null,null,null,null,null,"KP PVC DN150:4,00*0,80*((1,75+1,35)/2-0,45)"]
[null,null,"1,50*0,80*((1,75+1,35)/2-0,20)",null,1.62,null,null,null,null,null,null,null,"1,50*0,80*((1,75+1,35)/2-0,20)"]
[null,null,"Napojení na stávající stoku DN400:2,00*1,20*(1,80-0,45)",null,3.24,null,null,null,null,null,null,null,"Napojení na stávající stoku DN400:2,00*1,20*(1,80-0,45)"]
[null,null,"Odpočet objemu stávajícího potrubí DN400:-2,00*0,20^2*Pi",null,-0.25130000000000002,null,null,null,null,null,null,null,"Odpočet objemu stávajícího potrubí DN400:-2,00*0,20^2*Pi"]
[9,"132201219R00","Přípl.za lepivost,hloubení rýh 200cm,hor.3,STROJNĚ ","m3",8.1287000000000003,null,{"$f":"E42*F42","v":0},0,{"$f":"E42*H42","v":0},0,{"$f":"E42*J42","v":0},null,null,null,2,null,null,null,null,null,null,null,null,null,null,null,1,1,1,null,null,null,null,null,null,null,null,null,null,null,null,null,null,null,null,null,null,null,null,null,null,1,{"$f":"IF(AZ42=1,G42,0)","v":0},{"$f":"IF(AZ42=2,G42,0)","v":0},{"$f":"IF(AZ42=3,G42,0)","v":0},{"$f":"IF(AZ42=4,G42,0)","v":0},{"$f":"IF(AZ42=5,G42,0)","v":0},null,null,null,null,null,null,null,null,null,null,null,null,null,null,null,null,null,null,null,null,null,1,1]
[null,null,"KP PVC DN150:4,00*0,80*((1,75+1,35)/2-0,45)",null,3.52,null,null,null,null,null,null,null,"KP PVC DN150:4,00*0,80*((1,75+1,35)/2-0,45)"]
[null,null,"1,50*0,80*((1,75+1,35)/2-0,20)",null,1.62,null,null,null,null,null,null,null,"1,50*0,80*((1,75+1,35)/2-0,20)"]
[null,null,"Napojení na stávající stoku DN400:2,00*1,20*(1,80-0,45)",null,3.24,null,null,null,null,null,null,null,"Napojení na stávající stoku DN400:2,00*1,20*(1,80-0,45)"]
[null,null,"Odpočet objemu stávajícího potrubí DN400:-2,00*0,20^2*Pi",null,-0.25130000000000002,null,null,null,null,null,null,null,"Odpočet objemu stávajícího potrubí DN400:-2,00*0,20^2*Pi"]
[10,"151101101R00","Pažení a rozepření stěn rýh - příložné - hl.do 2 m ","m2",11.85,null,{"$f":"E47*F47","v":0},9.8999999999999999E-4,{"$f":"E47*H47","v":1.1731499999999999E-2},0,{"$f":"E47*J47","v":0},null,null,null,2,null,null,null,null,null,null,null,null,null,null,null,1,1,1,null,null,null,null,null,null,null,null,null,null,null,null,null,null,null,null,null,null,null,null,null,null,1,{"$f":"IF(AZ47=1,G47,0)","v":0},{"$f":"IF(AZ47=2,G47,0)","v":0},{"$f":"IF(AZ47=3,G47,0)","v":0},{"$f":"IF(AZ47=4,G47,0)","v":0},{"$f":"IF(AZ47=5,G47,0)","v":0},null,null,null,null,null,null,null,null,null,null,null,null,null,null,null,null,null,null,null,null,null,1,1]
[null,null,"KP PVC DN150:1,50*(1,75+1,35)/2*2",null,4.6500000000000004,null,null,null,null,null,null,null,"KP PVC DN150:1,50*(1,75+1,35)/2*2"]
[null,null,"Napojení na stávající stoku DN400:2,00*1,80*2",null,7.2,null,null,null,null,null,null,null,"Napojení na stávající stoku DN400:2,00*1,80*2"]
[11,"151101111R00","Odstranění pažení stěn rýh - příložné - hl. do 2 m ","m2",11.85,null,{"$f":"E50*F50","v":0},0,{"$f":"E50*H50","v":0},0,{"$f":"E50*J50","v":0},null,null,null,2,null,null,null,null,null,null,null,null,null,null,null,1,1,1,null,null,null,null,null,null,null,null,null,null,null,null,null,null,null,null,null,null,null,null,null,null,1,{"$f":"IF(AZ50=1,G50,0)","v":0},{"$f":"IF(AZ50=2,G50,0)","v":0},{"$f":"IF(AZ50=3,G50,0)","v":0},{"$f":"IF(AZ50=4,G50,0)","v":0},{"$f":"IF(AZ50=5,G50,0)","v":0},null,null,null,null,null,null,null,null,null,null,null,null,null,null,null,null,null,null,null,null,null,1,1]
[null,null,"KP PVC DN150:1,50*(1,75+1,35)/2*2",null,4.6500000000000004,null,null,null,null,null,null,null,"KP PVC DN150:1,50*(1,75+1,35)/2*2"]
[null,null,"Napojení na stávající stoku DN400:2,00*1,80*2",null,7.2,null,null,null,null,null,null,null,"Napojení na stávající stoku DN400:2,00*1,80*2"]
[12,"162701105RSZ","Vodorovné přemístění výkopku z hor.1-7 na skládku zhotovitele","m3",6.9183000000000003,null,{"$f":"E53*F53","v":0},0,{"$f":"E53*H53","v":0},0,{"$f":"E53*J53","v":0},null,null,null,2,null,null,null,null,null,null,null,null,null,null,null,1,1,1,null,null,null,null,null,null,null,null,null,null,null,null,null,null,null,null,null,null,null,null,null,null,1,{"$f":"IF(AZ53=1,G53,0)","v":0},{"$f":"IF(AZ53=2,G53,0)","v":0},{"$f":"IF(AZ53=3,G53,0)","v":0},{"$f":"IF(AZ53=4,G53,0)","v":0},{"$f":"IF(AZ53=5,G53,0)","v":0},null,null,null,null,null,null,null,null,null,null,null,null,null,null,null,null,null,null,null,null,null,1,1]
[null,null,"Výkopy:",null,0,null,null,null,null,null,null,null,"Výkopy:"]
[null,null,"KP PVC DN150:4,00*0,80*((1,75+1,35)/2-0,45)",null,3.52,null,null,null,null,null,null,null,"KP PVC DN150:4,00*0,80*((1,75+1,35)/2-0,45)"]
[null,null,"1,50*0,80*((1,75+1,35)/2-0,20)",null,1.62,null,null,null,null,null,null,null,"1,50*0,80*((1,75+1,35)/2-0,20)"]
[null,null,"Napojení na stávající stoku DN400:2,00*1,20*(1,80-0,45)",null,3.24,null,null,null,null,null,null,null,"Napojení na stávající stoku DN400:2,00*1,20*(1,80-0,45)"]
[null,null,"Odpočet objemu stávajícího potrubí DN400:-2,00*0,20^2*Pi",null,-0.25130000000000002,null,null,null,null,null,null,null,"Odpočet objemu stávajícího potrubí DN400:-2,00*0,20^2*Pi"]
[null,null,"Odpočet zásypů zeminou:-1,2104",null,-1.2103999999999999,null,null,null,null,null,null,null,"Odpočet zásypů zeminou:-1,2104"]
[13,"174101101R00","Zásyp jam, rýh, šachet se zhutněním ","m3",4.0103999999999997,null,{"$f":"E60*F60","v":0},0,{"$f":"E60*H60","v":0},0,{"$f":"E60*J60","v":0},null,null,null,2,null,null,null,null,null,null,null,null,null,null,null,1,1,1,null,null,null,null,null,null,null,null,null,null,null,null,null,null,null,null,null,null,null,null,null,null,1,{"$f":"IF(AZ60=1,G60,0)","v":0},{"$f":"IF(AZ60=2,G60,0)","v":0},{"$f":"IF(AZ60=3,G60,0)","v":0},{"$f":"IF(AZ60=4,G60,0)","v":0},{"$f":"IF(AZ60=5,G60,0)","v":0},null,null,null,null,null,null,null,null,null,null,null,null,null,null,null,null,null,null,null,null,null,1,1]
[null,null,"Položka obsahuje strojní přemístění materiálu pro zásyp ze vzdálenosti do 10 m od okraje zásypu.",null,null,null,null,null,null,null,null,"Položka obsahuje strojní přemístění materiálu pro zásyp ze vzdálenosti do 10 m od okraje zásypu.",null,null,3]
[null,null,null,null,null,null,null,null,null,null,null,null,null,null,3]
[null,null,"Zásyp zeminou:1,2104",null,1.2103999999999999,null,null,null,null,null,null,null,"Zásyp zeminou:1,2104"]
[null,null,"Začátek provozního součtu",null,0,null,null,null,null,null,null,null,"Začátek provozního součtu"]
[null,null,"KP PVC DN150:1,50*0,80*((1,75+1,35)/2-0,20)",null,1.62,null,null,null,null,null,null,null,"KP PVC DN150:1,50*0,80*((1,75+1,35)/2-0,20)"]
[null,null,"Odpočet lože, potrubí a obsypů:-0,50*0,80*(0,15+0,15+0,30)",null,-0.24,null,null,null,null,null,null,null,"Odpočet lože, potrubí a obsypů:-0,50*0,80*(0,15+0,15+0,30)"]
[null,null,"Odpočet objemu DRŠ:-0,20^2*Pi*((1,75+1,35)/2-0,20)",null,-0.1696,null,null,null,null,null,null,null,"Odpočet objemu DRŠ:-0,20^2*Pi*((1,75+1,35)/2-0,20)"]
[null,null,"Konec provozního součtu",null,1.2104000000000001,null,null,null,null,null,null,null,"Konec provozního součtu"]
[null,null,"Zásyp ŠD fr. 0-63 mm v komunikaci:2,800",null,2.8,null,null,null,null,null,null,null,"Zásyp ŠD fr. 0-63 mm v komunikaci:2,800"]
[null,null,"Začátek provozního součtu",null,0,null,null,null,null,null,null,null,"Začátek provozního součtu"]
[null,null,"KP PVC DN150:4,00*0,80*((1,75+1,35)/2-0,45)",null,3.52,null,null,null,null,null,null,null,"KP PVC DN150:4,00*0,80*((1,75+1,35)/2-0,45)"]
[null,null,"Napojení na stávající stoku DN400:2,00*1,20*(1,80-0,45)",null,3.24,null,null,null,null,null,null,null,"Napojení na stávající stoku DN400:2,00*1,20*(1,80-0,45)"]
[null,null,"Odpočet objemu lože, potrubí a obsypů:-4,00*0,80*(0,15+0,15+0,30)",null,-1.92,null,null,null,null,null,null,null,"Odpočet objemu lože, potrubí a obsypů:-4,00*0,80*(0,15+0,15+0,30)"]
[null,null,"Napojení na stávající stoku DN400:-2,00*1,20*(0,15+0,40+0,30)",null,-2.04,null,null,null,null,null,null,null,"Napojení na stávající stoku DN400:-2,00*1,20*(0,15+0,40+0,30)"]
[null,null,"Konec provozního součtu",null,2.8,null,null,null,null,null,null,null,"Konec provozního součtu"]
[14,"175101101R00","Obsyp potrubí bez prohození sypaniny ","m3",3.1402999999999999,null,{"$f":"E76*F76","v":0},0,{"$f":"E76*H76","v":0},0,{"$f":"E76*J76","v":0},null,null,null,2,null,null,null,null,null,null,null,null,null,null,null,1,1,1,null,null,null,null,null,null,null,null,null,null,null,null,null,null,null,null,null,null,null,null,null,null,1,{"$f":"IF(AZ76=1,G76,0)","v":0},{"$f":"IF(AZ76=2,G76,0)","v":0},{"$f":"IF(AZ76=3,G76,0)","v":0},{"$f":"IF(AZ76=4,G76,0)","v":0},{"$f":"IF(AZ76=5,G76,0)","v":0},null,null,null,null,null,null,null,null,null,null,null,null,null,null,null,null,null,null,null,null,null,1,1]
[null,null,"KP PVC DN150:5,00*(0,80*(0,15+0,30)-0,075^2*Pi)",null,1.7116,null,null,null,null,null,null,null,"KP PVC DN150:5,00*(0,80*(0,15+0,30)-0,075^2*Pi)"]
[null,null,"Napojení na stávající stoku DN400:2,00*(1,20*(0,40+0,30)-0,20^2*Pi)",null,1.4287000000000001,null,null,null,null,null,null,null,"Napojení na stávající stoku DN400:2,00*(1,20*(0,40+0,30)-0,20^2*Pi)"]
[15,"199000002R00","Poplatek za skládku horniny 1- 7 č. dle katal. odpadů 17 05 04","m3",6.9183000000000003,null,{"$f":"E79*F79","v":0},0,{"$f":"E79*H79","v":0},0,{"$f":"E79*J79","v":0},null,null,null,2,null,null,null,null,null,null,null,null,null,null,null,1,1,1,null,null,null,null,null,null,null,null,null,null,null,null,null,null,null,null,null,null,null,null,null,null,1,{"$f":"IF(AZ79=1,G79,0)","v":0},{"$f":"IF(AZ79=2,G79,0)","v":0},{"$f":"IF(AZ79=3,G79,0)","v":0},{"$f":"IF(AZ79=4,G79,0)","v":0},{"$f":"IF(AZ79=5,G79,0)","v":0},null,null,null,null,null,null,null,null,null,null,null,null,null,null,null,null,null,null,null,null,null,1,1]
[null,null,"Odpočet objemu stávajícího potrubí DN400:-2,00*0,20^2*Pi",null,-0.25130000000000002,null,null,null,null,null,null,null,"Odpočet objemu stávajícího potrubí DN400:-2,00*0,20^2*Pi"]
[null,null,"Odpočet zásypů zeminou:-1,2104",null,-1.2103999999999999,null,null,null,null,null,null,null,"Odpočet zásypů zeminou:-1,2104"]
[null,null,"Výkopy:",null,0,null,null,null,null,null,null,null,"Výkopy:"]
[null,null,"KP PVC DN150:4,00*0,80*((1,75+1,35)/2-0,45)",null,3.52,null,null,null,null,null,null,null,"KP PVC DN150:4,00*0,80*((1,75+1,35)/2-0,45)"]
[null,null,"1,50*0,80*((1,75+1,35)/2-0,20)",null,1.62,null,null,null,null,null,null,null,"1,50*0,80*((1,75+1,35)/2-0,20)"]
[null,null,"Napojení na stávající stoku DN400:2,00*1,20*(1,80-0,45)",null,3.24,null,null,null,null,null,null,null,"Napojení na stávající stoku DN400:2,00*1,20*(1,80-0,45)"]
[16,"919735112R00","Řezání stávajícího živičného krytu tl. 5 - 10 cm ","m",13.6,null,{"$f":"E86*F86","v":0},0,{"$f":"E86*H86","v":0},0,{"$f":"E86*J86","v":0},null,null,null,2,null,null,null,null,null,null,null,null,null,null,null,1,1,1,null,null,null,null,null,null,null,null,null,null,null,null,null,null,null,null,null,null,null,null,null,null,1,{"$f":"IF(AZ86=1,G86,0)","v":0},{"$f":"IF(AZ86=2,G86,0)","v":0},{"$f":"IF(AZ86=3,G86,0)","v":0},{"$f":"IF(AZ86=4,G86,0)","v":0},{"$f":"IF(AZ86=5,G86,0)","v":0},null,null,null,null,null,null,null,null,null,null,null,null,null,null,null,null,null,null,null,null,null,1,1]
[null,null,"KP PVC DN150:4,00*2",null,8,null,null,null,null,null,null,null,"KP PVC DN150:4,00*2"]
[null,null,"Napojení na stávající stoku DN400:(2,00+1,20)*2-0,80",null,5.6,null,null,null,null,null,null,null,"Napojení na stávající stoku DN400:(2,00+1,20)*2-0,80"]
[17,"919735123R00","Řezání stávajícího betonového krytu tl. 10 - 15 cm ","m",13.6,null,{"$f":"E89*F89","v":0},0,{"$f":"E89*H89","v":0},0,{"$f":"E89*J89","v":0},null,null,null,2,null,null,null,null,null,null,null,null,null,null,null,1,1,1,null,null,null,null,null,null,null,null,null,null,null,null,null,null,null,null,null,null,null,null,null,null,1,{"$f":"IF(AZ89=1,G89,0)","v":0},{"$f":"IF(AZ89=2,G89,0)","v":0},{"$f":"IF(AZ89=3,G89,0)","v":0},{"$f":"IF(AZ89=4,G89,0)","v":0},{"$f":"IF(AZ89=5,G89,0)","v":0},null,null,null,null,null,null,null,null,null,null,null,null,null,null,null,null,null,null,null,null,null,1,1]
[null,null,"KP PVC DN150:4,00*2",null,8,null,null,null,null,null,null,null,"KP PVC DN150:4,00*2"]
[null,null,"Napojení na stávající stoku DN400:(2,00+1,20)*2-0,80",null,5.6,null,null,null,null,null,null,null,"Napojení na stávající stoku DN400:(2,00+1,20)*2-0,80"]
[18,"979082113RSZ","Vodorovná doprava suti po suchu na skládku zhotovitele","t",5.7119999999999997,null,{"$f":"E92*F92","v":0},0,{"$f":"E92*H92","v":0},0,{"$f":"E92*J92","v":0},null,null,null,2,null,null,null,null,null,null,null,null,null,null,null,1,1,1,null,null,null,null,null,null,null,null,null,null,null,null,null,null,null,null,null,null,null,null,null,null,1,{"$f":"IF(AZ92=1,G92,0)","v":0},{"$f":"IF(AZ92=2,G92,0)","v":0},{"$f":"IF(AZ92=3,G92,0)","v":0},{"$f":"IF(AZ92=4,G92,0)","v":0},{"$f":"IF(AZ92=5,G92,0)","v":0},null,null,null,null,null,null,null,null,null,null,null,null,null,null,null,null,null,null,null,null,null,1,1]
[19,"979089001R00","Poplatek za skládku stavební suti štěrky z komunikací, skupina odpadu 010408","t",2.464,null,{"$f":"E93*F93","v":0},0,{"$f":"E93*H93","v":0},0,{"$f":"E93*J93","v":0},null,null,null,2,null,null,null,null,null,null,null,null,null,null,null,1,1,1,null,null,null,null,null,null,null,null,null,null,null,null,null,null,null,null,null,null,null,null,null,null,1,{"$f":"IF(AZ93=1,G93,0)","v":0},{"$f":"IF(AZ93=2,G93,0)","v":0},{"$f":"IF(AZ93=3,G93,0)","v":0},{"$f":"IF(AZ93=4,G93,0)","v":0},{"$f":"IF(AZ93=5,G93,0)","v":0},null,null,null,null,null,null,null,null,null,null,null,null,null,null,null,null,null,null,null,null,null,1,1]
[20,"979990103R00","Poplatek za skládku stavební suti beton skupina odpadu 170101","t",2.016,null,{"$f":"E94*F94","v":0},0,{"$f":"E94*H94","v":0},0,{"$f":"E94*J94","v":0},null,null,null,2,null,null,null,null,null,null,null,null,null,null,null,1,1,1,null,null,null,null,null,null,null,null,null,null,null,null,null,null,null,null,null,null,null,null,null,null,1,{"$f":"IF(AZ94=1,G94,0)","v":0},{"$f":"IF(AZ94=2,G94,0)","v":0},{"$f":"IF(AZ94=3,G94,0)","v":0},{"$f":"IF(AZ94=4,G94,0)","v":0},{"$f":"IF(AZ94=5,G94,0)","v":0},null,null,null,null,null,null,null,null,null,null,null,null,null,null,null,null,null,null,null,null,null,1,1]
[21,"979999995R00","Poplatek za reciklaci asfaltu, kusovost do 1600cm2 skupina 170302","t",1.232,null,{"$f":"E95*F95","v":0},0,{"$f":"E95*H95","v":0},0,{"$f":"E95*J95","v":0},null,null,null,2,null,null,null,null,null,null,null,null,null,null,null,1,1,1,null,null,null,null,null,null,null,null,null,null,null,null,null,null,null,null,null,null,null,null,null,null,1,{"$f":"IF(AZ95=1,G95,0)","v":0},{"$f":"IF(AZ95=2,G95,0)","v":0},{"$f":"IF(AZ95=3,G95,0)","v":0},{"$f":"IF(AZ95=4,G95,0)","v":0},{"$f":"IF(AZ95=5,G95,0)","v":0},null,null,null,null,null,null,null,null,null,null,null,null,null,null,null,null,null,null,null,null,null,1,1]
[null,null,"Položka je určena pro suť o velikosti kusu do 30x30 cm (technologický materiál určený k recyklaci).",null,null,null,null,null,null,null,null,"Položka je určena pro suť o velikosti kusu do 30x30 cm (technologický materiál určený k recyklaci).",null,null,3]
[22,"58337308R","Štěrkopísek frakce 0-2 tř.B","t",4.7439,null,{"$f":"E97*F97","v":0},1,{"$f":"E97*H97","v":4.7439},null,{"$f":"E97*J97","v":0},null,null,null,2,null,null,null,null,null,null,null,null,null,null,null,3,1,"58337308R",null,null,null,null,null,null,null,null,null,null,null,null,null,null,null,null,null,null,null,null,null,null,1,{"$f":"IF(AZ97=1,G97,0)","v":0},{"$f":"IF(AZ97=2,G97,0)","v":0},{"$f":"IF(AZ97=3,G97,0)","v":0},{"$f":"IF(AZ97=4,G97,0)","v":0},{"$f":"IF(AZ97=5,G97,0)","v":0},null,null,null,null,null,null,null,null,null,null,null,null,null,null,null,null,null,null,null,null,null,3,1]
[null,null,"KP PVC DN150:5,00*(0,80*(0,15+0,30)-0,075^2*Pi)*1,0973*1,01",null,1.897,null,null,null,null,null,null,null,"KP PVC DN150:5,00*(0,80*(0,15+0,30)-0,075^2*Pi)*1,0973*1,01"]
[null,null,"Napojení na stávající stoku DN400:2,00*(1,20*(0,40+0,30)-0,20^2*Pi)*1,973*1,01",null,2.847,null,null,null,null,null,null,null,"Napojení na stávající stoku DN400:2,00*(1,20*(0,40+0,30)-0,20^2*Pi)*1,973*1,01"]
[23,"58344197R","Štěrkodrtě frakce 0-63 A","t",5.2968000000000002,null,{"$f":"E100*F100","v":0},1,{"$f":"E100*H100","v":5.2968000000000002},null,{"$f":"E100*J100","v":0},null,null,null,2,null,null,null,null,null,null,null,null,null,null,null,3,1,"58344197R",null,null,null,null,null,null,null,null,null,null,null,null,null,null,null,null,null,null,null,null,null,null,1,{"$f":"IF(AZ100=1,G100,0)","v":0},{"$f":"IF(AZ100=2,G100,0)","v":0},{"$f":"IF(AZ100=3,G100,0)","v":0},{"$f":"IF(AZ100=4,G100,0)","v":0},{"$f":"IF(AZ100=5,G100,0)","v":0},null,null,null,null,null,null,null,null,null,null,null,null,null,null,null,null,null,null,null,null,null,3,1]
[null,null,"Zásyp ŠD fr. 0-63 mm v komunikaci:2,800*1,873*1,01",null,5.2968000000000002,null,null,null,null,null,null,null,"Zásyp ŠD fr. 0-63 mm v komunikaci:2,800*1,873*1,01"]
[null,null,"Začátek provozního součtu",null,0,null,null,null,null,null,null,null,"Začátek provozního součtu"]
[null,null,"KP PVC DN150:4,00*0,80*((1,75+1,35)/2-0,45)",null,3.52,null,null,null,null,null,null,null,"KP PVC DN150:4,00*0,80*((1,75+1,35)/2-0,45)"]
[null,null,"Napojení na stávající stoku DN400:2,00*1,20*(1,80-0,45)",null,3.24,null,null,null,null,null,null,null,"Napojení na stávající stoku DN400:2,00*1,20*(1,80-0,45)"]
[null,null,"Odpočet objemu lože, potrubí a obsypů:-4,00*0,80*(0,15+0,15+0,30)",null,-1.92,null,null,null,null,null,null,null,"Odpočet objemu lože, potrubí a obsypů:-4,00*0,80*(0,15+0,15+0,30)"]
[null,null,"Napojení na stávající stoku DN400:-2,00*1,20*(0,15+0,40+0,30)",null,-2.04,null,null,null,null,null,null,null,"Napojení na stávající stoku DN400:-2,00*1,20*(0,15+0,40+0,30)"]
[null,null,"Konec provozního součtu",null,2.8,null,null,null,null,null,null,null,"Konec provozního součtu"]
[null,"Celkem za","1 Zemní práce",null,null,null,{"$f":"SUM(G7:G107)","v":0},null,{"$f":"SUM(I7:I107)","v":10.112935499999999},null,{"$f":"SUM(K7:K107)","v":-5.7119999999999997},null,null,null,4,null,null,null,null,null,null,null,null,null,null,null,null,null,null,null,null,null,null,null,null,null,null,null,null,null,null,null,null,null,null,null,null,null,null,null,null,null,{"$f":"SUM(BA7:BA107)","v":0},{"$f":"SUM(BB7:BB107)","v":0},{"$f":"SUM(BC7:BC107)","v":0},{"$f":"SUM(BD7:BD107)","v":0},{"$f":"SUM(BE7:BE107)","v":0}]
["Díl:","45","Podkladní a vedlejší konstrukce",null,null,null,null,null,null,null,null,null,null,null,1]
[24,"451572111R00","Lože pod potrubí z kameniva těženého 0 - 4 mm ","m3",0.96,null,{"$f":"E110*F110","v":0},1.873,{"$f":"E110*H110","v":1.7980799999999999},0,{"$f":"E110*J110","v":0},null,null,null,2,null,null,null,null,null,null,null,null,null,null,null,1,1,1,null,null,null,null,null,null,null,null,null,null,null,null,null,null,null,null,null,null,null,null,null,null,1,{"$f":"IF(AZ110=1,G110,0)","v":0},{"$f":"IF(AZ110=2,G110,0)","v":0},{"$f":"IF(AZ110=3,G110,0)","v":0},{"$f":"IF(AZ110=4,G110,0)","v":0},{"$f":"IF(AZ110=5,G110,0)","v":0},null,null,null,null,null,null,null,null,null,null,null,null,null,null,null,null,null,null,null,null,null,1,1]
[null,null,"KP PVC DN150:5,00*0,80*0,15",null,0.6,null,null,null,null,null,null,null,"KP PVC DN150:5,00*0,80*0,15"]
[null,null,"Napojení na stávající stoku DN400:2,00*1,20*0,15",null,0.36,null,null,null,null,null,null,null,"Napojení na stávající stoku DN400:2,00*1,20*0,15"]
[null,"Celkem za","45 Podkladní a vedlejší konstrukce",null,null,null,{"$f":"SUM(G109:G112)","v":0},null,{"$f":"SUM(I109:I112)","v":1.7980799999999999},null,{"$f":"SUM(K109:K112)","v":0},null,null,null,4,null,null,null,null,null,null,null,null,null,null,null,null,null,null,null,null,null,null,null,null,null,null,null,null,null,null,null,null,null,null,null,null,null,null,null,null,null,{"$f":"SUM(BA109:BA112)","v":0},{"$f":"SUM(BB109:BB112)","v":0},{"$f":"SUM(BC109:BC112)","v":0},{"$f":"SUM(BD109:BD112)","v":0},{"$f":"SUM(BE109:BE112)","v":0}]
["Díl:","5","Komunikace",null,null,null,null,null,null,null,null,null,null,null,1]
[25,"566903111R00","Vyspravení podkladu po překopech kam.hrubě drceným ","t",2.0977999999999999,null,{"$f":"E115*F115","v":0},1.1000000000000001,{"$f":"E115*H115","v":2.3075800000000002},0,{"$f":"E115*J115","v":0},null,null,null,2,null,null,null,null,null,null,null,null,null,null,null,1,1,1,null,null,null,null,null,null,null,null,null,null,null,null,null,null,null,null,null,null,null,null,null,null,1,{"$f":"IF(AZ115=1,G115,0)","v":0},{"$f":"IF(AZ115=2,G115,0)","v":0},{"$f":"IF(AZ115=3,G115,0)","v":0},{"$f":"IF(AZ115=4,G115,0)","v":0},{"$f":"IF(AZ115=5,G115,0)","v":0},null,null,null,null,null,null,null,null,null,null,null,null,null,null,null,null,null,null,null,null,null,1,1]
[null,null,"KP PVC DN150:4,00*0,80*0,20*1,873",null,1.1987000000000001,null,null,null,null,null,null,null,"KP PVC DN150:4,00*0,80*0,20*1,873"]
[null,null,"Napojení na stávající stoku DN400:2,00*1,20*0,20*1,873",null,0.89900000000000002,null,null,null,null,null,null,null,"Napojení na stávající stoku DN400:2,00*1,20*0,20*1,873"]
[26,"566904111R00","Vyspravení podkladu po překopech kam.obal.asfaltem ","t",1.4,null,{"$f":"E118*F118","v":0},1,{"$f":"E118*H118","v":1.4},0,{"$f":"E118*J118","v":0},null,null,null,2,null,null,null,null,null,null,null,null,null,null,null,1,1,1,null,null,null,null,null,null,null,null,null,null,null,null,null,null,null,null,null,null,null,null,null,null,1,{"$f":"IF(AZ118=1,G118,0)","v":0},{"$f":"IF(AZ118=2,G118,0)","v":0},{"$f":"IF(AZ118=3,G118,0)","v":0},{"$f":"IF(AZ118=4,G118,0)","v":0},{"$f":"IF(AZ118=5,G118,0)","v":0},null,null,null,null,null,null,null,null,null,null,null,null,null,null,null,null,null,null,null,null,null,1,1]
[null,null,"KP PVC DN150:4,00*0,80*0,10*2,5",null,0.8,null,null,null,null,null,null,null,"KP PVC DN150:4,00*0,80*0,10*2,5"]
[null,null,"Napojení na stávající stoku DN400:2,00*1,20*0,10*2,5",null,0.6,null,null,null,null,null,null,null,"Napojení na stávající stoku DN400:2,00*1,20*0,10*2,5"]
[27,"566905111R00","Vyspravení podkladu po překopech podklad.betonem ","m3",0.84,null,{"$f":"E121*F121","v":0},2.5,{"$f":"E121*H121","v":2.1},0,{"$f":"E121*J121","v":0},null,null,null,2,null,null,null,null,null,null,null,null,null,null,null,1,1,1,null,null,null,null,null,null,null,null,null,null,null,null,null,null,null,null,null,null,null,null,null,null,1,{"$f":"IF(AZ121=1,G121,0)","v":0},{"$f":"IF(AZ121=2,G121,0)","v":0},{"$f":"IF(AZ121=3,G121,0)","v":0},{"$f":"IF(AZ121=4,G121,0)","v":0},{"$f":"IF(AZ121=5,G121,0)","v":0},null,null,null,null,null,null,null,null,null,null,null,null,null,null,null,null,null,null,null,null,null,1,1]
[null,null,"KP PVC DN150:4,00*0,80*0,15",null,0.48,null,null,null,null,null,null,null,"KP PVC DN150:4,00*0,80*0,15"]
[null,null,"Napojení na stávající stoku DN400:2,00*1,20*0,15",null,0.36,null,null,null,null,null,null,null,"Napojení na stávající stoku DN400:2,00*1,20*0,15"]
[28,"573111121R00","Postřik infiltr., množství zbytkov. poj. 0,60kg/m2 ","m2",5.6,null,{"$f":"E124*F124","v":0},5.6100000000000004E-3,{"$f":"E124*H124","v":3.1415999999999999E-2},0,{"$f":"E124*J124","v":0},null,null,null,2,null,null,null,null,null,null,null,null,null,null,null,1,1,1,null,null,null,null,null,null,null,null,null,null,null,null,null,null,null,null,null,null,null,null,null,null,1,{"$f":"IF(AZ124=1,G124,0)","v":0},{"$f":"IF(AZ124=2,G124,0)","v":0},{"$f":"IF(AZ124=3,G124,0)","v":0},{"$f":"IF(AZ124=4,G124,0)","v":0},{"$f":"IF(AZ124=5,G124,0)","v":0},null,null,null,null,null,null,null,null,null,null,null,null,null,null,null,null,null,null,null,null,null,1,1]
[null,null,"KP PVC DN150:4,00*0,80",null,3.2,null,null,null,null,null,null,null,"KP PVC DN150:4,00*0,80"]
[null,null,"Napojení na stávající stoku DN400:2,00*1,20",null,2.4,null,null,null,null,null,null,null,"Napojení na stávající stoku DN400:2,00*1,20"]
[null,"Celkem za","5 Komunikace",null,null,null,{"$f":"SUM(G114:G126)","v":0},null,{"$f":"SUM(I114:I126)","v":5.8389959999999999},null,{"$f":"SUM(K114:K126)","v":0},null,null,null,4,null,null,null,null,null,null,null,null,null,null,null,null,null,null,null,null,null,null,null,null,null,null,null,null,null,null,null,null,null,null,null,null,null,null,null,null,null,{"$f":"SUM(BA114:BA126)","v":0},{"$f":"SUM(BB114:BB126)","v":0},{"$f":"SUM(BC114:BC126)","v":0},{"$f":"SUM(BD114:BD126)","v":0},{"$f":"SUM(BE114:BE126)","v":0}]
["Díl:","8","Trubní vedení",null,null,null,null,null,null,null,null,null,null,null,1]
[29,"871313121R00","Montáž trub z plastu, gumový kroužek, DN 150 ","m",5,null,{"$f":"E129*F129","v":0},0,{"$f":"E129*H129","v":0},0,{"$f":"E129*J129","v":0},null,null,null,2,null,null,null,null,null,null,null,null,null,null,null,1,0,0,null,null,null,null,null,null,null,null,null,null,null,null,null,null,null,null,null,null,null,null,null,null,1,{"$f":"IF(AZ129=1,G129,0)","v":0},{"$f":"IF(AZ129=2,G129,0)","v":0},{"$f":"IF(AZ129=3,G129,0)","v":0},{"$f":"IF(AZ129=4,G129,0)","v":0},{"$f":"IF(AZ129=5,G129,0)","v":0},null,null,null,null,null,null,null,null,null,null,null,null,null,null,null,null,null,null,null,null,null,1,0]
[null,null,"V položce je uvažováno s jedním spojem na 6 m potrubí. Položka je určena pro montáž potrubí z kanalizačních trub z plastu těsněných gumovým kroužkem v otevřeném výkopu ve sklonu do 20 %.",null,null,null,null,null,null,null,null,"V položce je uvažováno s jedním spojem na 6 m potrubí. Položka je určena pro montáž potrubí z kanalizačních trub z plastu těsněných gumovým kroužkem v otevřeném výkopu ve sklonu do 20 %.",null,null,3]
[null,null,"KP PVC DN150:5,00",null,5,null,null,null,null,null,null,null,"KP PVC DN150:5,00"]
[30,"877365121RX1","Výřez a montáž tvarovky z plastu na potrubí DN400 vč. dodávky přesuvek DN400 a odbočky DN400/150","kus",1,null,{"$f":"E132*F132","v":0},1.435E-2,{"$f":"E132*H132","v":1.435E-2},0,{"$f":"E132*J132","v":0},null,null,null,2,null,null,null,null,null,null,null,null,null,null,null,1,1,1,null,null,null,null,null,null,null,null,null,null,null,null,null,null,null,null,null,null,null,null,null,null,1,{"$f":"IF(AZ132=1,G132,0)","v":0},{"$f":"IF(AZ132=2,G132,0)","v":0},{"$f":"IF(AZ132=3,G132,0)","v":0},{"$f":"IF(AZ132=4,G132,0)","v":0},{"$f":"IF(AZ132=5,G132,0)","v":0},null,null,null,null,null,null,null,null,null,null,null,null,null,null,null,null,null,null,null,null,null,1,1]
[null,null,"Součástí položky je i podbetonování prostoru napojení přípojky dle PD.",null,null,null,null,null,null,null,null,"Součástí položky je i podbetonování prostoru napojení přípojky dle PD.",null,null,3]
[null,null,"Stávající potrubí stoka je ULTRA-RIB 2 DN400",null,null,null,null,null,null,null,null,"Stávající potrubí stoka je ULTRA-RIB 2 DN400",null,null,3]
[null,null,"KP PVC DN150:",null,0,null,null,null,null,null,null,null,"KP PVC DN150:"]
[null,null,"Napojení KP na stávající stoku DN400:1",null,1,null,null,null,null,null,null,null,"Napojení KP na stávající stoku DN400:1"]
[31,"892601121R00","Čištění kanalizační stoky do DN 200, do 15 m ","úsek",1,null,{"$f":"E137*F137","v":0},0,{"$f":"E137*H137","v":0},0,{"$f":"E137*J137","v":0},null,null,null,2,null,null,null,null,null,null,null,null,null,null,null,1,1,1,null,null,null,null,null,null,null,null,null,null,null,null,null,null,null,null,null,null,null,null,null,null,1,{"$f":"IF(AZ137=1,G137,0)","v":0},{"$f":"IF(AZ137=2,G137,0)","v":0},{"$f":"IF(AZ137=3,G137,0)","v":0},{"$f":"IF(AZ137=4,G137,0)","v":0},{"$f":"IF(AZ137=5,G137,0)","v":0},null,null,null,null,null,null,null,null,null,null,null,null,null,null,null,null,null,null,null,null,null,1,1]
[null,null,"V položce je zakalkulováno:",null,null,null,null,null,null,null,null,"V položce je zakalkulováno:",null,null,3]
[null,null,"a) otevření a uzavření revizních šachet a čisticích kusů",null,null,null,null,null,null,null,null,"a) otevření a uzavření revizních šachet a čisticích kusů",null,null,3]
[null,null,"b) natažení vysokotlakých hadic k místu odkud se bude kanalizace čistit",null,null,null,null,null,null,null,null,"b) natažení vysokotlakých hadic k místu odkud se bude kanalizace čistit",null,null,3]
[null,null,"c) vyčištění potrubí tlakovou vodou nebo motorovým pérem.",null,null,null,null,null,null,null,null,"c) vyčištění potrubí tlakovou vodou nebo motorovým pérem.",null,null,3]
[32,"892855111R00","Kontrola kanalizace TV kamerou do 15 m ","úsek",1,null,{"$f":"E142*F142","v":0},0,{"$f":"E142*H142","v":0},0,{"$f":"E142*J142","v":0},null,null,null,2,null,null,null,null,null,null,null,null,null,null,null,1,1,1,null,null,null,null,null,null,null,null,null,null,null,null,null,null,null,null,null,null,null,null,null,null,1,{"$f":"IF(AZ142=1,G142,0)","v":0},{"$f":"IF(AZ142=2,G142,0)","v":0},{"$f":"IF(AZ142=3,G142,0)","v":0},{"$f":"IF(AZ142=4,G142,0)","v":0},{"$f":"IF(AZ142=5,G142,0)","v":0},null,null,null,null,null,null,null,null,null,null,null,null,null,null,null,null,null,null,null,null,null,1,1]
[null,null,"Provedení kaberové prohlídky včetně dodání elektronického záznamu na CD zadavateli a tištěné dokumentace průběhu kamerové prohlídky",null,null,null,null,null,null,null,null,"Provedení kaberové prohlídky včetně dodání elektronického záznamu na CD zadavateli a tištěné dokumentace průběhu kamerové prohlídky",null,null,3]
[33,"894431312RAC","Šachta, D 425 mm, dl.šach.roury 1,50 m, 1 přítok dno KG D 160 mm, poklop děrovaný litina 40 t","kus",1,null,{"$f":"E144*F144","v":0},5.5530000000000003E-2,{"$f":"E144*H144","v":5.5530000000000003E-2},0,{"$f":"E144*J144","v":0},null,null,null,2,null,null,null,null,null,null,null,null,null,null,null,1,1,1,null,null,null,null,null,null,null,null,null,null,null,null,null,null,null,null,null,null,null,null,null,null,1,{"$f":"IF(AZ144=1,G144,0)","v":0},{"$f":"IF(AZ144=2,G144,0)","v":0},{"$f":"IF(AZ144=3,G144,0)","v":0},{"$f":"IF(AZ144=4,G144,0)","v":0},{"$f":"IF(AZ144=5,G144,0)","v":0},null,null,null,null,null,null,null,null,null,null,null,null,null,null,null,null,null,null,null,null,null,1,1]
[null,null,"Plastové dno, šachta z korugované trouby, těsnění, šachtová roura teleskopická, rám do teleskopické trouby, poklop litinový děrovaný.",null,null,null,null,null,null,null,null,"Plastové dno, šachta z korugované trouby, těsnění, šachtová roura teleskopická, rám do teleskopické trouby, poklop litinový děrovaný.",null,null,3]
[34,"286111903.R","Trubka kanalizační PVC QUANTUM SN min. 12 DN 150","m",5.15,null,{"$f":"E146*F146","v":0},8.2000000000000007E-3,{"$f":"E146*H146","v":4.2230000000000004E-2},null,{"$f":"E146*J146","v":0},null,null,null,2,null,null,null,null,null,null,null,null,null,null,null,3,1,"286111903.R",null,null,null,null,null,null,null,null,null,null,null,null,null,null,null,null,null,null,null,null,null,null,1,{"$f":"IF(AZ146=1,G146,0)","v":0},{"$f":"IF(AZ146=2,G146,0)","v":0},{"$f":"IF(AZ146=3,G146,0)","v":0},{"$f":"IF(AZ146=4,G146,0)","v":0},{"$f":"IF(AZ146=5,G146,0)","v":0},null,null,null,null,null,null,null,null,null,null,null,null,null,null,null,null,null,null,null,null,null,3,1]
[null,null,"Jedná  se  o  plnostěnné kanalizační trubky DN 150 – DN 400, SN 12 kN/m2 , zvenčí  i  zevnitř  hladké. Jsou  opatřeny hrdlem,  v  němž  je  vložen vysoce  elastický  jazýčkový  kroužek.  konce  trubek  (dříků)  jsou opatřeny  zkosením  pod  úhlem  15°.  Způsob  použití  trubek  je  „U“  dle  normy  ČSN  EN  1401-1, tj. mimo budovy. Spolehlivá  funkce  těsnění  je  jištěna  výztužným  kroužkem  z  elastomeru.  Je  tak  zamezeno  vypad-nutí nebo vytlačení kroužku při manipulaci a montáži. Tento systém zaručuje při správné montáži ",null,null,null,null,null,null,null,null,"Jedná  se  o  plnostěnné kanalizační trubky DN 150 – DN 400, SN 12 kN/m2 , zvenčí  i  zevnitř  hladké. Jsou  opatřeny hrdlem,  v  němž  je  vložen vysoce  elastický  jazýčkový  kroužek.  konce  trubek  (dříků)  jsou opatřeny  zkosením  pod  úhlem  15°.  Způsob  použití  trubek  je  „U“  dle  normy  ČSN  EN  1401-1, tj. mimo budovy. Spolehlivá  funkce  těsnění  je  jištěna  výztužným  kroužkem  z  elastomeru.  Je  tak  zamezeno  vypad-nutí nebo vytlačení kroužku při manipulaci a montáži. Tento systém zaručuje při správné montáži ",null,null,3]
[null,null,"dokonalou  těsnost  do  výšky  vodního  sloupce  5  metrů.",null,null,null,null,null,null,null,null,"dokonalou  těsnost  do  výšky  vodního  sloupce  5  metrů.",null,null,3]
[null,null,"Teplota při pokládce: min. -10 °C, max. 50 °C",null,null,null,null,null,null,null,null,"Teplota při pokládce: min. -10 °C, max. 50 °C",null,null,3]
[null,null,"Max. teplota média: trvale do 40 °C, krátkodobě do 60 °C",null,null,null,null,null,null,null,null,"Max. teplota média: trvale do 40 °C, krátkodobě do 60 °C",null,null,3]
[null,null,"Orientační výška krytí: min. 0,5 m, max. 10 m",null,null,null,null,null,null,null,null,"Orientační výška krytí: min. 0,5 m, max. 10 m",null,null,3]
[null,null,"Max. rychlost média: 12 m/s",null,null,null,null,null,null,null,null,"Max. rychlost média: 12 m/s",null,null,3]
[null,null,"KP PVC DN150:5,00*1,03",null,5.15,null,null,null,null,null,null,null,"KP PVC DN150:5,00*1,03"]
[null,"Celkem za","8 Trubní vedení",null,null,null,{"$f":"SUM(G128:G153)","v":0},null,{"$f":"SUM(I128:I153)","v":0.11211},null,{"$f":"SUM(K128:K153)","v":0},null,null,null,4,null,null,null,null,null,null,null,null,null,null,null,null,null,null,null,null,null,null,null,null,null,null,null,null,null,null,null,null,null,null,null,null,null,null,null,null,null,{"$f":"SUM(BA128:BA153)","v":0},{"$f":"SUM(BB128:BB153)","v":0},{"$f":"SUM(BC128:BC153)","v":0},{"$f":"SUM(BD128:BD153)","v":0},{"$f":"SUM(BE128:BE153)","v":0}]
["Díl:","99","Staveništní přesun hmot",null,null,null,null,null,null,null,null,null,null,null,1]
[35,"998276101R00","Přesun hmot, trubní vedení plastová, otevř. výkop ","t",17.862121500000001,null,{"$f":"E156*F156","v":0},0,{"$f":"E156*H156","v":0},null,{"$f":"E156*J156","v":0},null,null,null,2,null,null,null,null,null,null,null,null,null,null,null,7,1,2,null,null,null,null,null,null,null,null,null,null,null,null,null,null,null,null,null,null,null,null,null,null,1,{"$f":"IF(AZ156=1,G156,0)","v":0},{"$f":"IF(AZ156=2,G156,0)","v":0},{"$f":"IF(AZ156=3,G156,0)","v":0},{"$f":"IF(AZ156=4,G156,0)","v":0},{"$f":"IF(AZ156=5,G156,0)","v":0},null,null,null,null,null,null,null,null,null,null,null,null,null,null,null,null,null,null,null,null,null,7,1]
[null,"Celkem za","99 Staveništní přesun hmot",null,null,null,{"$f":"SUM(G155:G156)","v":0},null,{"$f":"SUM(I155:I156)","v":0},null,{"$f":"SUM(K155:K156)","v":0},null,null,null,4,null,null,null,null,null,null,null,null,null,null,null,null,null,null,null,null,null,null,null,null,null,null,null,null,null,null,null,null,null,null,null,null,null,null,null,null,null,{"$f":"SUM(BA155:BA156)","v":0},{"$f":"SUM(BB155:BB156)","v":0},{"$f":"SUM(BC155:BC156)","v":0},{"$f":"SUM(BD155:BD156)","v":0},{"$f":"SUM(BE155:BE156)","v":0}]

{"sheet":"330 3357330 KL","index":7,"n_rows":45,"n_cols":8,"rows_kept":45,"cut":false,"hidden":false,"merged":[[22,0,22,1],[7,2,7,4],[8,2,8,4],[9,2,9,4],[10,2,10,4],[11,2,11,4],[50,1,50,6],[29,5,29,6],[30,5,30,6],[31,5,31,6],[32,5,32,6],[33,5,33,6],[36,1,44,6],[45,1,45,6],[46,1,46,6],[47,1,47,6],[48,1,48,6],[49,1,49,6]]}
["POLOŽKOVÝ ROZPOČET"]
["Rozpočet",null,"3357/330","STL plynová přípojka",null,"JKSO ","827.59"]
[]
["Objekt",null,null,null,null,"SKP "]
["330",null,"STL plynová přípojka",null,null,"Měrná jednotka","m"]
["Stavba",null,null,null,null,"Počet jednotek",4]
["3357",null,"Přípojky pro p.p.č. 1005/8 v k.ú. Turnov",null,null,"Náklady na m.j.",{"$f":"IF(G6=0,,ROUND((F30+F32)/G6,1))","v":0}]
["Projektant",null,"JENA-CZ s.r.o.",null,null,"Typ rozpočtu"]
["Zpracovatel projektu"]
["Objednatel",null,"Město TURNOV"]
["Dodavatel",null,".",null,null,"Zakázkové číslo "]
["Rozpočtoval",null,null,null,null,"Počet listů"]
["ROZPOČTOVÉ NÁKLADY"]
["Základní rozpočtové náklady",null,null,"Ostatní rozpočtové náklady"]
[null,"HSV celkem",{"$f":"'330 3357330 Rek'!E12","v":0},{"$f":"'330 3357330 Rek'!A17","v":"Zařízení staveniště"},null,null,{"$f":"'330 3357330 Rek'!I17","v":0}]
["Z","PSV celkem",{"$f":"'330 3357330 Rek'!F12","v":0},{"$f":"'330 3357330 Rek'!A18","v":"Kompletační činnost (IČD)"},null,null,{"$f":"'330 3357330 Rek'!I18","v":0}]
["R","M práce celkem",{"$f":"'330 3357330 Rek'!H12","v":0},{"$f":"'330 3357330 Rek'!A19","v":"Vytýčení stavby a podz. inženýrských sítí"},null,null,{"$f":"'330 3357330 Rek'!I19","v":0}]
["N","M dodávky celkem",{"$f":"'330 3357330 Rek'!G12","v":0},{"$f":"'330 3357330 Rek'!A20","v":"Dokumentace skutečného provedení"},null,null,{"$f":"'330 3357330 Rek'!I20","v":0}]
["ZRN celkem",null,{"$f":"SUM(C15:C18)","v":0},{"$f":"'330 3357330 Rek'!A21","v":"Geodetické zaměření stavby"},null,null,{"$f":"'330 3357330 Rek'!I21","v":0}]
[null,null,null,{"$f":"'330 3357330 Rek'!A22","v":"DIO"},null,null,{"$f":"'330 3357330 Rek'!I22","v":0}]
["HZS",null,{"$f":"'330 3357330 Rek'!I12","v":0}]
["ZRN+HZS",null,{"$f":"C19+C21","v":0}]
["ZRN+ost.náklady+HZS",null,{"$f":"C22+G23","v":0},"Ostatní náklady celkem",null,null,{"$f":"'330 3357330 Rek'!H23","v":0}]
["Vypracoval",null,null,"Za zhotovitele",null,"Za objednatele"]
["Jméno :",null,null,"Jméno :",null,"Jméno :"]
["Datum :",null,null,"Datum :",null,"Datum :"]
[]
["Podpis :",null,null,"Podpis:",null,"Podpis:"]
[]
["Základ pro DPH",null,21,"%  ",null,{"$f":"C23-F32","v":0}]
["DPH",null,{"$f":"C30","v":21},"% ",null,{"$f":"ROUND(PRODUCT(F30,C31/100),0)","v":0}]
["Základ pro DPH",null,0,"% ",null,0]
["DPH",null,{"$f":"C32","v":0},"% ",null,{"$f":"ROUND(PRODUCT(F32,C33/100),0)","v":0}]
["CENA ZA OBJEKT CELKEM",null,null,null,null,{"$f":"ROUND(SUM(F30:F33),0)","v":0}]
[]
["Poznámka :",null,null,null,null,null,null," "]
[null,null,null,null,null,null,null," "]
[null,null,null,null,null,null,null," "]
[null,null,null,null,null,null,null," "]
[null,null,null,null,null,null,null," "]
[null,null,null,null,null,null,null," "]
[null,null,null,null,null,null,null," "]
[null,null,null,null,null,null,null," "]
[null,null,null,null,null,null,null," "]
[null,null,null,null,null,null,null," "]

{"sheet":"330 3357330 Rek","index":8,"n_rows":23,"n_cols":53,"rows_kept":23,"cut":false,"hidden":false,"merged":[[0,0,0,1],[1,0,1,1],[1,6,1,8],[22,7,22,8]]}
["Stavba :",null,"3357 Přípojky pro p.p.č. 1005/8 v k.ú. Turnov",null,null,null,"Rozpočet :","3357/330"]
["Objekt :",null,"330 STL plynová přípojka",null,null,null,"STL plynová přípojka"]
[]
["REKAPITULACE  STAVEBNÍCH  DÍLŮ"]
[]
[null,"Stavební díl",null,null,"HSV","PSV","Dodávka","Montáž","HZS"]
[{"$f":"'330 3357330 Pol'!B7","v":"1"},{"$f":"'330 3357330 Pol'!C7","v":"Zemní práce"},null,null,{"$f":"'330 3357330 Pol'!BA27","v":0},{"$f":"'330 3357330 Pol'!BB27","v":0},{"$f":"'330 3357330 Pol'!BC27","v":0},{"$f":"'330 3357330 Pol'!BD27","v":0},{"$f":"'330 3357330 Pol'!BE27","v":0}]
[{"$f":"'330 3357330 Pol'!B28","v":"3"},{"$f":"'330 3357330 Pol'!C28","v":"Svislé a kompletní konstrukce"},null,null,{"$f":"'330 3357330 Pol'!BA31","v":0},{"$f":"'330 3357330 Pol'!BB31","v":0},{"$f":"'330 3357330 Pol'!BC31","v":0},{"$f":"'330 3357330 Pol'!BD31","v":0},{"$f":"'330 3357330 Pol'!BE31","v":0}]
[{"$f":"'330 3357330 Pol'!B32","v":"5"},{"$f":"'330 3357330 Pol'!C32","v":"Komunikace"},null,null,{"$f":"'330 3357330 Pol'!BA41","v":0},{"$f":"'330 3357330 Pol'!BB41","v":0},{"$f":"'330 3357330 Pol'!BC41","v":0},{"$f":"'330 3357330 Pol'!BD41","v":0},{"$f":"'330 3357330 Pol'!BE41","v":0}]
[{"$f":"'330 3357330 Pol'!B42","v":"8"},{"$f":"'330 3357330 Pol'!C42","v":"Trubní vedení"},null,null,{"$f":"'330 3357330 Pol'!BA46","v":0},{"$f":"'330 3357330 Pol'!BB46","v":0},{"$f":"'330 3357330 Pol'!BC46","v":0},{"$f":"'330 3357330 Pol'!BD46","v":0},{"$f":"'330 3357330 Pol'!BE46","v":0}]
[{"$f":"'330 3357330 Pol'!B47","v":"99"},{"$f":"'330 3357330 Pol'!C47","v":"Staveništní přesun hmot"},null,null,{"$f":"'330 3357330 Pol'!BA49","v":0},{"$f":"'330 3357330 Pol'!BB49","v":0},{"$f":"'330 3357330 Pol'!BC49","v":0},{"$f":"'330 3357330 Pol'!BD49","v":0},{"$f":"'330 3357330 Pol'!BE49","v":0}]
[null,"CELKEM  OBJEKT",null,null,{"$f":"SUM(E7:E11)","v":0},{"$f":"SUM(F7:F11)","v":0},{"$f":"SUM(G7:G11)","v":0},{"$f":"SUM(H7:H11)","v":0},{"$f":"SUM(I7:I11)","v":0}]
[]
["VEDLEJŠÍ ROZPOČTOVÉ  NÁKLADY"]
[]
["Název VRN",null,null,null,"Kč",null,null,null,"Kč"]
["Zařízení staveniště",null,null,null,0,null,null,null,{"$f":"E17+F17*G17/100","v":0},null,null,null,null,null,null,null,null,null,null,null,null,null,null,null,null,null,null,null,null,null,null,null,null,null,null,null,null,null,null,null,null,null,null,null,null,null,null,null,null,null,null,null,2]
["Kompletační činnost (IČD)",null,null,null,0,null,null,null,0,null,null,null,null,null,null,null,null,null,null,null,null,null,null,null,null,null,null,null,null,null,null,null,null,null,null,null,null,null,null,null,null,null,null,null,null,null,null,null,null,null,null,null,2]
["Vytýčení stavby a podz. inženýrských sítí",null,null,null,0,null,null,null,0,null,null,null,null,null,null,null,null,null,null,null,null,null,null,null,null,null,null,null,null,null,null,null,null,null,null,null,null,null,null,null,null,null,null,null,null,null,null,null,null,null,null,null,0]
["Dokumentace skutečného provedení",null,null,null,0,null,null,null,0,null,null,null,null,null,null,null,null,null,null,null,null,null,null,null,null,null,null,null,null,null,null,null,null,null,null,null,null,null,null,null,null,null,null,null,null,null,null,null,null,null,null,null,0]
["Geodetické zaměření stavby",null,null,null,0,null,null,null,0,null,null,null,null,null,null,null,null,null,null,null,null,null,null,null,null,null,null,null,null,null,null,null,null,null,null,null,null,null,null,null,null,null,null,null,null,null,null,null,null,null,null,null,0]
["DIO",null,null,null,0,null,null,null,0,null,null,null,null,null,null,null,null,null,null,null,null,null,null,null,null,null,null,null,null,null,null,null,null,null,null,null,null,null,null,null,null,null,null,null,null,null,null,null,null,null,null,null,0]
[null,"CELKEM VRN",null,null,null,null,null,{"$f":"SUM(I17:I22)","v":0}]

{"sheet":"330 3357330 Pol","index":9,"n_rows":49,"n_cols":80,"rows_kept":49,"cut":false,"hidden":false,"merged":[[10,2,10,3],[12,2,12,3],[14,2,14,3],[0,0,0,6],[2,0,2,1],[3,0,3,1],[3,4,3,6],[8,2,8,3],[15,2,15,3],[16,2,16,3],[18,2,18,3],[20,2,20,3],[25,2,25,6],[43,2,43,6],[44,2,44,6],[29,2,29,6],[33,2,33,3],[35,2,35,3],[37,2,37,3],[39,2,39,3]]}
["Položkový rozpočet "]
[]
["Stavba :",null,"3357 Přípojky pro p.p.č. 1005/8 v k.ú. Turnov",null,"Rozpočet:",{"$f":"'330 3357330 Rek'!H1","v":"3357/330"}]
["Objekt :",null,"330 STL plynová přípojka",null,{"$f":"'330 3357330 Rek'!G2","v":"STL plynová přípojka"}]
[]
["P.č.","Číslo položky","Název položky","MJ","množství","cena / MJ","celkem (Kč)","Jednotková hmotnost","Celková hmotnost","Jednotková dem.hmot.","Celková dem.hmot."]
["Díl:","1","Zemní práce",null,null,null,null,null,null,null,null,null,null,null,1]
[1,"113107520R00","Odstranění podkladu pl. 50 m2,kam.drcené tl.20 cm ","m2",1.8,null,{"$f":"E8*F8","v":0},0,{"$f":"E8*H8","v":0},-0.44,{"$f":"E8*J8","v":-0.79200000000000004},null,null,null,2,null,null,null,null,null,null,null,null,null,null,null,1,1,1,null,null,null,null,null,null,null,null,null,null,null,null,null,null,null,null,null,null,null,null,null,null,1,{"$f":"IF(AZ8=1,G8,0)","v":0},{"$f":"IF(AZ8=2,G8,0)","v":0},{"$f":"IF(AZ8=3,G8,0)","v":0},{"$f":"IF(AZ8=4,G8,0)","v":0},{"$f":"IF(AZ8=5,G8,0)","v":0},null,null,null,null,null,null,null,null,null,null,null,null,null,null,null,null,null,null,null,null,null,1,1]
[null,null,"Přípojka STL plyn:3,00*0,60",null,1.8,null,null,null,null,null,null,null,"Přípojka STL plyn:3,00*0,60"]
[2,"113108310R00","Odstranění asfaltové vrstvy pl. do 50 m2, tl.10 cm ","m2",1.8,null,{"$f":"E10*F10","v":0},0,{"$f":"E10*H10","v":0},-0.22,{"$f":"E10*J10","v":-0.39600000000000002},null,null,null,2,null,null,null,null,null,null,null,null,null,null,null,1,1,1,null,null,null,null,null,null,null,null,null,null,null,null,null,null,null,null,null,null,null,null,null,null,1,{"$f":"IF(AZ10=1,G10,0)","v":0},{"$f":"IF(AZ10=2,G10,0)","v":0},{"$f":"IF(AZ10=3,G10,0)","v":0},{"$f":"IF(AZ10=4,G10,0)","v":0},{"$f":"IF(AZ10=5,G10,0)","v":0},null,null,null,null,null,null,null,null,null,null,null,null,null,null,null,null,null,null,null,null,null,1,1]
[null,null,"Přípojka STL plyn:3,00*0,60",null,1.8,null,null,null,null,null,null,null,"Přípojka STL plyn:3,00*0,60"]
[3,"113109315R00","Odstranění podkladu pl.50 m2, bet.prostý tl.15 cm ","m2",1.8,null,{"$f":"E12*F12","v":0},0,{"$f":"E12*H12","v":0},-0.36,{"$f":"E12*J12","v":-0.64800000000000002},null,null,null,2,null,null,null,null,null,null,null,null,null,null,null,1,1,1,null,null,null,null,null,null,null,null,null,null,null,null,null,null,null,null,null,null,null,null,null,null,1,{"$f":"IF(AZ12=1,G12,0)","v":0},{"$f":"IF(AZ12=2,G12,0)","v":0},{"$f":"IF(AZ12=3,G12,0)","v":0},{"$f":"IF(AZ12=4,G12,0)","v":0},{"$f":"IF(AZ12=5,G12,0)","v":0},null,null,null,null,null,null,null,null,null,null,null,null,null,null,null,null,null,null,null,null,null,1,1]
[null,null,"Přípojka STL plyn:3,00*0,60",null,1.8,null,null,null,null,null,null,null,"Přípojka STL plyn:3,00*0,60"]
[4,"119001421R00","Dočasné zajištění kabelů - do počtu 3 kabelů ","m",1.6,null,{"$f":"E14*F14","v":0},2.478E-2,{"$f":"E14*H14","v":3.9648000000000003E-2},0,{"$f":"E14*J14","v":0},null,null,null,2,null,null,null,null,null,null,null,null,null,null,null,1,1,1,null,null,null,null,null,null,null,null,null,null,null,null,null,null,null,null,null,null,null,null,null,null,1,{"$f":"IF(AZ14=1,G14,0)","v":0},{"$f":"IF(AZ14=2,G14,0)","v":0},{"$f":"IF(AZ14=3,G14,0)","v":0},{"$f":"IF(AZ14=4,G14,0)","v":0},{"$f":"IF(AZ14=5,G14,0)","v":0},null,null,null,null,null,null,null,null,null,null,null,null,null,null,null,null,null,null,null,null,null,1,1]
[null,null,"Přípojka STL plyn:",null,0,null,null,null,null,null,null,null,"Přípojka STL plyn:"]
[null,null,"Vedení NN:0,80*1",null,0.8,null,null,null,null,null,null,null,"Vedení NN:0,80*1"]
[null,null,"Vedení VO:0,80*1",null,0.8,null,null,null,null,null,null,null,"Vedení VO:0,80*1"]
[5,"919735112R00","Řezání stávajícího živičného krytu tl. 5 - 10 cm ","m",6.6,null,{"$f":"E18*F18","v":0},0,{"$f":"E18*H18","v":0},0,{"$f":"E18*J18","v":0},null,null,null,2,null,null,null,null,null,null,null,null,null,null,null,1,1,1,null,null,null,null,null,null,null,null,null,null,null,null,null,null,null,null,null,null,null,null,null,null,1,{"$f":"IF(AZ18=1,G18,0)","v":0},{"$f":"IF(AZ18=2,G18,0)","v":0},{"$f":"IF(AZ18=3,G18,0)","v":0},{"$f":"IF(AZ18=4,G18,0)","v":0},{"$f":"IF(AZ18=5,G18,0)","v":0},null,null,null,null,null,null,null,null,null,null,null,null,null,null,null,null,null,null,null,null,null,1,1]
[null,null,"Přípojka STL plyn:3,00*2+0,60",null,6.6,null,null,null,null,null,null,null,"Přípojka STL plyn:3,00*2+0,60"]
[6,"919735123R00","Řezání stávajícího betonového krytu tl. 10 - 15 cm ","m",6.6,null,{"$f":"E20*F20","v":0},0,{"$f":"E20*H20","v":0},0,{"$f":"E20*J20","v":0},null,null,null,2,null,null,null,null,null,null,null,null,null,null,null,1,1,1,null,null,null,null,null,null,null,null,null,null,null,null,null,null,null,null,null,null,null,null,null,null,1,{"$f":"IF(AZ20=1,G20,0)","v":0},{"$f":"IF(AZ20=2,G20,0)","v":0},{"$f":"IF(AZ20=3,G20,0)","v":0},{"$f":"IF(AZ20=4,G20,0)","v":0},{"$f":"IF(AZ20=5,G20,0)","v":0},null,null,null,null,null,null,null,null,null,null,null,null,null,null,null,null,null,null,null,null,null,1,1]
[null,null,"Přípojka STL plyn:3,00*2+0,60",null,6.6,null,null,null,null,null,null,null,"Přípojka STL plyn:3,00*2+0,60"]
[7,"979082113RSZ","Vodorovná doprava suti po suchu na skládku zhotovitele","t",1.8360000000000001,null,{"$f":"E22*F22","v":0},0,{"$f":"E22*H22","v":0},0,{"$f":"E22*J22","v":0},null,null,null,2,null,null,null,null,null,null,null,null,null,null,null,1,1,1,null,null,null,null,null,null,null,null,null,null,null,null,null,null,null,null,null,null,null,null,null,null,1,{"$f":"IF(AZ22=1,G22,0)","v":0},{"$f":"IF(AZ22=2,G22,0)","v":0},{"$f":"IF(AZ22=3,G22,0)","v":0},{"$f":"IF(AZ22=4,G22,0)","v":0},{"$f":"IF(AZ22=5,G22,0)","v":0},null,null,null,null,null,null,null,null,null,null,null,null,null,null,null,null,null,null,null,null,null,1,1]
[8,"979089001R00","Poplatek za skládku stavební suti štěrky z komunikací, skupina odpadu 010408","t",0.79200000000000004,null,{"$f":"E23*F23","v":0},0,{"$f":"E23*H23","v":0},0,{"$f":"E23*J23","v":0},null,null,null,2,null,null,null,null,null,null,null,null,null,null,null,1,1,1,null,null,null,null,null,null,null,null,null,null,null,null,null,null,null,null,null,null,null,null,null,null,1,{"$f":"IF(AZ23=1,G23,0)","v":0},{"$f":"IF(AZ23=2,G23,0)","v":0},{"$f":"IF(AZ23=3,G23,0)","v":0},{"$f":"IF(AZ23=4,G23,0)","v":0},{"$f":"IF(AZ23=5,G23,0)","v":0},null,null,null,null,null,null,null,null,null,null,null,null,null,null,null,null,null,null,null,null,null,1,1]
[9,"979990103R00","Poplatek za skládku stavební suti beton skupina odpadu 170101","t",0.64800000000000002,null,{"$f":"E24*F24","v":0},0,{"$f":"E24*H24","v":0},0,{"$f":"E24*J24","v":0},null,null,null,2,null,null,null,null,null,null,null,null,null,null,null,1,1,1,null,null,null,null,null,null,null,null,null,null,null,null,null,null,null,null,null,null,null,null,null,null,1,{"$f":"IF(AZ24=1,G24,0)","v":0},{"$f":"IF(AZ24=2,G24,0)","v":0},{"$f":"IF(AZ24=3,G24,0)","v":0},{"$f":"IF(AZ24=4,G24,0)","v":0},{"$f":"IF(AZ24=5,G24,0)","v":0},null,null,null,null,null,null,null,null,null,null,null,null,null,null,null,null,null,null,null,null,null,1,1]
[10,"979999995R00","Poplatek za reciklaci asfaltu, kusovost do 1600cm2 skupina 170302","t",0.39600000000000002,null,{"$f":"E25*F25","v":0},0,{"$f":"E25*H25","v":0},0,{"$f":"E25*J25","v":0},null,null,null,2,null,null,null,null,null,null,null,null,null,null,null,1,1,1,null,null,null,null,null,null,null,null,null,null,null,null,null,null,null,null,null,null,null,null,null,null,1,{"$f":"IF(AZ25=1,G25,0)","v":0},{"$f":"IF(AZ25=2,G25,0)","v":0},{"$f":"IF(AZ25=3,G25,0)","v":0},{"$f":"IF(AZ25=4,G25,0)","v":0},{"$f":"IF(AZ25=5,G25,0)","v":0},null,null,null,null,null,null,null,null,null,null,null,null,null,null,null,null,null,null,null,null,null,1,1]
[null,null,"Položka je určena pro suť o velikosti kusu do 30x30 cm (technologický materiál určený k recyklaci).",null,null,null,null,null,null,null,null,"Položka je určena pro suť o velikosti kusu do 30x30 cm (technologický materiál určený k recyklaci).",null,null,3]
[null,"Celkem za","1 Zemní práce",null,null,null,{"$f":"SUM(G7:G26)","v":0},null,{"$f":"SUM(I7:I26)","v":3.9648000000000003E-2},null,{"$f":"SUM(K7:K26)","v":-1.8360000000000003},null,null,null,4,null,null,null,null,null,null,null,null,null,null,null,null,null,null,null,null,null,null,null,null,null,null,null,null,null,null,null,null,null,null,null,null,null,null,null,null,null,{"$f":"SUM(BA7:BA26)","v":0},{"$f":"SUM(BB7:BB26)","v":0},{"$f":"SUM(BC7:BC26)","v":0},{"$f":"SUM(BD7:BD26)","v":0},{"$f":"SUM(BE7:BE26)","v":0}]
["Díl:","3","Svislé a kompletní konstrukce",null,null,null,null,null,null,null,null,null,null,null,1]
[11,"349121101RT5","Montáž plastové skříně plyn-HUP včetně dodávky skříně s vystrojením a základů","kus",1,null,{"$f":"E29*F29","v":0},0.20399999999999999,{"$f":"E29*H29","v":0.20399999999999999},0,{"$f":"E29*J29","v":0},null,null,null,2,null,null,null,null,null,null,null,null,null,null,null,1,0,0,null,null,null,null,null,null,null,null,null,null,null,null,null,null,null,null,null,null,null,null,null,null,1,{"$f":"IF(AZ29=1,G29,0)","v":0},{"$f":"IF(AZ29=2,G29,0)","v":0},{"$f":"IF(AZ29=3,G29,0)","v":0},{"$f":"IF(AZ29=4,G29,0)","v":0},{"$f":"IF(AZ29=5,G29,0)","v":0},null,null,null,null,null,null,null,null,null,null,null,null,null,null,null,null,null,null,null,null,null,1,0]
[null,null,"Součástí položky je i kompletní provedení zemních prací s odvozem zeminy na skládku zhotovitele včetně poplatku",null,null,null,null,null,null,null,null,"Součástí položky je i kompletní provedení zemních prací s odvozem zeminy na skládku zhotovitele včetně poplatku",null,null,3]
[null,"Celkem za","3 Svislé a kompletní konstrukce",null,null,null,{"$f":"SUM(G28:G30)","v":0},null,{"$f":"SUM(I28:I30)","v":0.20399999999999999},null,{"$f":"SUM(K28:K30)","v":0},null,null,null,4,null,null,null,null,null,null,null,null,null,null,null,null,null,null,null,null,null,null,null,null,null,null,null,null,null,null,null,null,null,null,null,null,null,null,null,null,null,{"$f":"SUM(BA28:BA30)","v":0},{"$f":"SUM(BB28:BB30)","v":0},{"$f":"SUM(BC28:BC30)","v":0},{"$f":"SUM(BD28:BD30)","v":0},{"$f":"SUM(BE28:BE30)","v":0}]
["Díl:","5","Komunikace",null,null,null,null,null,null,null,null,null,null,null,1]
[12,"566903111R00","Vyspravení podkladu po překopech kam.hrubě drceným ","t",0.67430000000000001,null,{"$f":"E33*F33","v":0},1.1000000000000001,{"$f":"E33*H33","v":0.74173000000000011},0,{"$f":"E33*J33","v":0},null,null,null,2,null,null,null,null,null,null,null,null,null,null,null,1,1,1,null,null,null,null,null,null,null,null,null,null,null,null,null,null,null,null,null,null,null,null,null,null,1,{"$f":"IF(AZ33=1,G33,0)","v":0},{"$f":"IF(AZ33=2,G33,0)","v":0},{"$f":"IF(AZ33=3,G33,0)","v":0},{"$f":"IF(AZ33=4,G33,0)","v":0},{"$f":"IF(AZ33=5,G33,0)","v":0},null,null,null,null,null,null,null,null,null,null,null,null,null,null,null,null,null,null,null,null,null,1,1]
[null,null,"Přípojka STL plyn:3,00*0,60*0,20*1,873",null,0.67430000000000001,null,null,null,null,null,null,null,"Přípojka STL plyn:3,00*0,60*0,20*1,873"]
[13,"566904111R00","Vyspravení podkladu po překopech kam.obal.asfaltem ","t",0.45,null,{"$f":"E35*F35","v":0},1,{"$f":"E35*H35","v":0.45},0,{"$f":"E35*J35","v":0},null,null,null,2,null,null,null,null,null,null,null,null,null,null,null,1,1,1,null,null,null,null,null,null,null,null,null,null,null,null,null,null,null,null,null,null,null,null,null,null,1,{"$f":"IF(AZ35=1,G35,0)","v":0},{"$f":"IF(AZ35=2,G35,0)","v":0},{"$f":"IF(AZ35=3,G35,0)","v":0},{"$f":"IF(AZ35=4,G35,0)","v":0},{"$f":"IF(AZ35=5,G35,0)","v":0},null,null,null,null,null,null,null,null,null,null,null,null,null,null,null,null,null,null,null,null,null,1,1]
[null,null,"Přípojka STL plyn:3,00*0,60*0,10*2,5",null,0.45,null,null,null,null,null,null,null,"Přípojka STL plyn:3,00*0,60*0,10*2,5"]
[14,"566905111R00","Vyspravení podkladu po překopech podklad.betonem ","m3",0.27,null,{"$f":"E37*F37","v":0},2.5,{"$f":"E37*H37","v":0.67500000000000004},0,{"$f":"E37*J37","v":0},null,null,null,2,null,null,null,null,null,null,null,null,null,null,null,1,1,1,null,null,null,null,null,null,null,null,null,null,null,null,null,null,null,null,null,null,null,null,null,null,1,{"$f":"IF(AZ37=1,G37,0)","v":0},{"$f":"IF(AZ37=2,G37,0)","v":0},{"$f":"IF(AZ37=3,G37,0)","v":0},{"$f":"IF(AZ37=4,G37,0)","v":0},{"$f":"IF(AZ37=5,G37,0)","v":0},null,null,null,null,null,null,null,null,null,null,null,null,null,null,null,null,null,null,null,null,null,1,1]
[null,null,"Přípojka STL plyn:3,00*0,60*0,15",null,0.27,null,null,null,null,null,null,null,"Přípojka STL plyn:3,00*0,60*0,15"]
[15,"573111121R00","Postřik infiltr., množství zbytkov. poj. 0,60kg/m2 ","m2",1.8,null,{"$f":"E39*F39","v":0},5.6100000000000004E-3,{"$f":"E39*H39","v":1.0098000000000001E-2},0,{"$f":"E39*J39","v":0},null,null,null,2,null,null,null,null,null,null,null,null,null,null,null,1,1,1,null,null,null,null,null,null,null,null,null,null,null,null,null,null,null,null,null,null,null,null,null,null,1,{"$f":"IF(AZ39=1,G39,0)","v":0},{"$f":"IF(AZ39=2,G39,0)","v":0},{"$f":"IF(AZ39=3,G39,0)","v":0},{"$f":"IF(AZ39=4,G39,0)","v":0},{"$f":"IF(AZ39=5,G39,0)","v":0},null,null,null,null,null,null,null,null,null,null,null,null,null,null,null,null,null,null,null,null,null,1,1]
[null,null,"Přípojka STL plyn:3,00*0,60",null,1.8,null,null,null,null,null,null,null,"Přípojka STL plyn:3,00*0,60"]
[null,"Celkem za","5 Komunikace",null,null,null,{"$f":"SUM(G32:G40)","v":0},null,{"$f":"SUM(I32:I40)","v":1.8768280000000002},null,{"$f":"SUM(K32:K40)","v":0},null,null,null,4,null,null,null,null,null,null,null,null,null,null,null,null,null,null,null,null,null,null,null,null,null,null,null,null,null,null,null,null,null,null,null,null,null,null,null,null,null,{"$f":"SUM(BA32:BA40)","v":0},{"$f":"SUM(BB32:BB40)","v":0},{"$f":"SUM(BC32:BC40)","v":0},{"$f":"SUM(BD32:BD40)","v":0},{"$f":"SUM(BE32:BE40)","v":0}]
["Díl:","8","Trubní vedení",null,null,null,null,null,null,null,null,null,null,null,1]
[16,"841220010RAX","Plynovodní přípojka z trub PE, D 32 mm, dl. 5 m napojení na řád D 63 mm","kus",1,null,{"$f":"E43*F43","v":0},1.45879,{"$f":"E43*H43","v":1.45879},0,{"$f":"E43*J43","v":0},null,null,null,2,null,null,null,null,null,null,null,null,null,null,null,1,1,1,null,null,null,null,null,null,null,null,null,null,null,null,null,null,null,null,null,null,null,null,null,null,1,{"$f":"IF(AZ43=1,G43,0)","v":0},{"$f":"IF(AZ43=2,G43,0)","v":0},{"$f":"IF(AZ43=3,G43,0)","v":0},{"$f":"IF(AZ43=4,G43,0)","v":0},{"$f":"IF(AZ43=5,G43,0)","v":0},null,null,null,null,null,null,null,null,null,null,null,null,null,null,null,null,null,null,null,null,null,1,1]
[null,null,"V položce je zakalkulováno hloubení rýh zapažených, šířky 60 cm v hornině 3, ve volném terénu, dodávka a montáž potrubí včetně navrtávací objímky, s podsypem štěrkopískem, s obsypem pískem nebo štěrkopískem, se zásypem štěrkodrtí v komunikaci hutněným a s odvozem přebytečné zeminy na skládku zhotovitele, s poplatku za skládku. Součástí ceny je dodávka trubního materiálu, elektrokoleno, chránička bralen, objímka, kulový kohout Novasfer, těsnící tmel, přechodka Isiflo, podpůrná vložka, držák chráničky a montáž všech částí přípojky, dále pak i výstražná fólie.",null,null,null,null,null,null,null,null,"V položce je zakalkulováno hloubení rýh zapažených, šířky 60 cm v hornině 3, ve volném terénu, dodávka a montáž potrubí včetně navrtávací objímky, s podsypem štěrkopískem, s obsypem pískem nebo štěrkopískem, se zásypem štěrkodrtí v komunikaci hutněným a s odvozem přebytečné zeminy na skládku zhotovitele, s poplatku za skládku. Součástí ceny je dodávka trubního materiálu, elektrokoleno, chránička bralen, objímka, kulový kohout Novasfer, těsnící tmel, přechodka Isiflo, podpůrná vložka, držák chráničky a montáž všech částí přípojky, dále pak i výstražná fólie.",null,null,3]
[null,null,"Délka přípojky 5 m + 1,5 m z výkopu do fasády.",null,null,null,null,null,null,null,null,"Délka přípojky 5 m + 1,5 m z výkopu do fasády.",null,null,3]
[null,"Celkem za","8 Trubní vedení",null,null,null,{"$f":"SUM(G42:G45)","v":0},null,{"$f":"SUM(I42:I45)","v":1.45879},null,{"$f":"SUM(K42:K45)","v":0},null,null,null,4,null,null,null,null,null,null,null,null,null,null,null,null,null,null,null,null,null,null,null,null,null,null,null,null,null,null,null,null,null,null,null,null,null,null,null,null,null,{"$f":"SUM(BA42:BA45)","v":0},{"$f":"SUM(BB42:BB45)","v":0},{"$f":"SUM(BC42:BC45)","v":0},{"$f":"SUM(BD42:BD45)","v":0},{"$f":"SUM(BE42:BE45)","v":0}]
["Díl:","99","Staveništní přesun hmot",null,null,null,null,null,null,null,null,null,null,null,1]
[17,"998276101R00","Přesun hmot, trubní vedení plastová, otevř. výkop ","t",3.5792660000000001,null,{"$f":"E48*F48","v":0},0,{"$f":"E48*H48","v":0},null,{"$f":"E48*J48","v":0},null,null,null,2,null,null,null,null,null,null,null,null,null,null,null,7,1,2,null,null,null,null,null,null,null,null,null,null,null,null,null,null,null,null,null,null,null,null,null,null,1,{"$f":"IF(AZ48=1,G48,0)","v":0},{"$f":"IF(AZ48=2,G48,0)","v":0},{"$f":"IF(AZ48=3,G48,0)","v":0},{"$f":"IF(AZ48=4,G48,0)","v":0},{"$f":"IF(AZ48=5,G48,0)","v":0},null,null,null,null,null,null,null,null,null,null,null,null,null,null,null,null,null,null,null,null,null,7,1]
[null,"Celkem za","99 Staveništní přesun hmot",null,null,null,{"$f":"SUM(G47:G48)","v":0},null,{"$f":"SUM(I47:I48)","v":0},null,{"$f":"SUM(K47:K48)","v":0},null,null,null,4,null,null,null,null,null,null,null,null,null,null,null,null,null,null,null,null,null,null,null,null,null,null,null,null,null,null,null,null,null,null,null,null,null,null,null,null,null,{"$f":"SUM(BA47:BA48)","v":0},{"$f":"SUM(BB47:BB48)","v":0},{"$f":"SUM(BC47:BC48)","v":0},{"$f":"SUM(BD47:BD48)","v":0},{"$f":"SUM(BE47:BE48)","v":0}]